Cogmind - Beta 16 @@@ ROGUE MODE // 2025.10.29 @ 07:30:31 Player: Dadrick Result: Destroyed by Hotshot with Precision Phase Gun Performance ------------- Evolutions (7) 3500 Regions Visited (29) 5800 Robots Destroyed (153) 765 Value Destroyed (5187) 5187 Prototype IDs (65) 1300 Alien Tech Used (4) 800 Bonus (5183) 5183 TOTAL SCORE: 22535 Bonus ------- High Alert Combat Kills 81 Follower Combat Kills 638 Registered with UFD 300 Met Optimus in HQ 500 Met Imprinter 300 Met Zhirov 300 Met Warlord at Base 500 MAIN.C Attacked Warlord 500 Warlord Defense Kills 1654 Met Optimus at Protoforge 1000 Friendly Fire -590 Cogmind --------- Core Integrity 0/1300 Matter 290/300 Energy 150/150 System Corruption 5% Temperature Cool (9) Movement Flying (39) Location -3/Protoforge Parts ------- > --- POWER (2) -------- Micro Antimatter Reactor > --- PROPULSION (7) --- Impulse Thruster Array Impulse Thruster Array Impulse Thruster Array > --- UTILITY (9) ------ Large Storage Unit Advanced Signal Interpreter Advanced Melee Analysis Suite Experimental Melee Analysis Suite ECM Suite Graphene Brace > --- WEAPON (3) ------- Power Sword > --- INVENTORY (15) --- Impulse Thruster Array Experimental Cloaking Device Force Lance Peak State ------------ > --- POWER ------------ Micro Antimatter Reactor Improved Quantum Reactor > --- PROPULSION ------- Cooled Impulse Thruster Impulse Thruster Array Impulse Thruster Array Impulse Thruster Array > --- UTILITY ---------- Large Storage Unit Advanced Signal Interpreter Experimental Melee Analysis Suite Experimental Power Shielding Centrium Medium Armor Plating Graphene Brace Advanced Hacking Suite System Mapper Advanced System Shield > --- WEAPON ----------- Sigix Broadsword Force Lance > --- INVENTORY -------- Light Antimatter Reactor Light Antimatter Reactor Advanced Cooling System Advanced Melee Analysis Suite ECM Suite Experimental Cloaking Device Advanced Hacking Suite Compact HERF Cannon Matter Neutralizer Mini Smartbomb Launcher RU-N14's Throwing Claymores v3 [Rating: 174] Favorites ----------- Power Makeshift Power Source Engine Makeshift Power Source Power Core Light Fission Core Reactor Micro Antimatter Reactor Propulsion Cooled Nuclear Pulse Thruster Treads Light Treads Leg Cargo Legs Flight Unit Cooled Nuclear Pulse Thruster Utility Improved Signal Interpreter Device Improved Sensor Array Storage High-capacity Storage Unit Processor Improved Signal Interpreter Hackware Hacking Suite Protection Light Armor Plating Weapon Chainsword Energy Gun Small Laser Energy Cannon Matter Neutralizer Ballistic Gun Subdweller Machine Gun Ballistic Cannon Magnetic Acceleration Cannon Launcher Rocket Launcher Special Weapon Improved Remote Datajack Impact Weapon Power Maul Slashing Weapon Chainsword Piercing Weapon Heavy Pick Build | -11 -10 -10 -10 -9 -9 -6 -6 -6 -6 -6 -6 -5 -5 -5 -5 -5 -5 -5 -4 -4 -4 -4 -4 -4 -4 -3 -3 -3 -3 ------- Run | Yrd Mat Min Sub Rec Scr Fac Was Fac Low Low Zio Pro Fac Was Fac Upp Upp War Pro Fac Was Fac Upp Upp Zhi Pro Res Qua Frg Slots Evolved 14 | . . . . . . 8 . . . . . . 2 . . . . . . 2 . . . . . . 2 . . Power 1 | . . . . . . . . . . . . . . . . . . . . 1 . . . . . . . . . Propulsion 5 | . . . . . . 3 . . . . . . 1 . . . . . . 1 . . . . . . . . . Utility 7 | . . . . . . 4 . . . . . . 1 . . . . . . . . . . . . . 2 . . Weapon 1 | . . . . . . 1 . . . . . . . . . . . . . . . . . . . . . . . Parts Attached 182 | 8 5 . 14 1 2 38 1 13 . . 1 . 12 . 9 . . 12 . 8 . 15 . . 1 2 9 4 27 Power 15 | 1 1 . 1 . . 3 . 1 . . . . 2 . . . . . . 2 . . . . . . 1 . 3 Engine 4 | 1 1 . 1 . . 1 . . . . . . . . . . . . . . . . . . . . . . . Core 5 | . . . . . . 2 . 1 . . . . 2 . . . . . . . . . . . . . . . . Reactor 6 | . . . . . . . . . . . . . . . . . . . . 2 . . . . . . 1 . 3 Propulsion 47 | 2 . . 2 . . 11 . 4 . . . . 6 . 2 . . 1 . 2 . 4 . . . 1 2 . 10 Treads 3 | 2 . . 1 . . . . . . . . . . . . . . . . . . . . . . . . . . Leg 6 | . . . 1 . . 5 . . . . . . . . . . . . . . . . . . . . . . . Wheel . | . . . . . . . . . . . . . . . . . . . . . . . . . . . . . . Hover . | . . . . . . . . . . . . . . . . . . . . . . . . . . . . . . Flight 38 | . . . . . . 6 . 4 . . . . 6 . 2 . . 1 . 2 . 4 . . . 1 2 . 10 Utility 71 | 2 1 . 4 1 1 14 1 5 . . 1 . 3 . 6 . . 3 . 2 . 7 . . 1 . 6 2 11 Device 26 | 1 . . . 1 . 5 . . . . 1 . 2 . 3 . . 2 . . . 2 . . . . 3 2 4 Storage 7 | 1 1 . 1 . . . . 1 . . . . . . 1 . . 1 . . . 1 . . . . . . . Processor 11 | . . . . . . 4 . 1 . . . . . . . . . . . . . 1 . . . . . . 5 Hackware 12 | . . . . . . 2 . 1 . . . . 1 . 2 . . . . 2 . 1 . . . . 3 . . Protection 15 | . . . 3 . 1 3 1 2 . . . . . . . . . . . . . 2 . . 1 . . . 2 Artifact . | . . . . . . . . . . . . . . . . . . . . . . . . . . . . . . Weapon 49 | 3 3 . 7 . 1 10 . 3 . . . . 1 . 1 . . 8 . 2 . 4 . . . 1 . 2 3 Energy Gun 4 | 2 1 . . . . . . . . . . . . . . . . 1 . . . . . . . . . . . Energy Cannon 5 | . . . . . . 2 . . . . . . . . . . . 1 . . . 1 . . . . . 1 . Ballistic Gun 10 | 1 1 . 4 . . 2 . . . . . . . . . . . . . . . . . . . . . . 2 Ballistic Cannon 7 | . . . 1 . 1 1 . 1 . . . . . . 1 . . 1 . . . . . . . 1 . . . Launcher 6 | . 1 . 1 . . 1 . 2 . . . . . . . . . . . . . 1 . . . . . . . Special Weapon 7 | . . . . . . . . . . . . . 1 . . . . 5 . 1 . . . . . . . . . Impact Weapon 3 | . . . 1 . . 1 . . . . . . . . . . . . . 1 . . . . . . . . . Slashing Weapon 4 | . . . . . . 2 . . . . . . . . . . . . . . . . . . . . . 1 1 Piercing Weapon 3 | . . . . . . 1 . . . . . . . . . . . . . . . 2 . . . . . . . Special Melee Weapon . | . . . . . . . . . . . . . . . . . . . . . . . . . . . . . . Unidentified Prototypes 31 | . . . . . . 2 . 3 . . 1 . 2 . . . . 7 . 2 . 1 . . 2 . 1 2 8 Parts Lost 53 | . 2 . 4 . . 10 . 6 . . . . 3 . 1 . . . . 1 . 6 . . . . . . 20 Power 6 | . . . 1 . . 1 . . . . . . 1 . . . . . . 1 . . . . . . . . 2 Propulsion 19 | . . . 1 . . 3 . 4 . . . . . . . . . . . . . 2 . . . . . . 9 Utility 18 | . . . 2 . . 3 . 2 . . . . 1 . 1 . . . . . . 3 . . . . . . 6 Weapon 10 | . 2 . . . . 3 . . . . . . 1 . . . . . . . . 1 . . . . . . 3 Highest Loss Streak 7 | . 2 . 2 . . 2 . 4 . . . . 1 . 1 . . . . 1 . 2 . . . . . . 7 To Critical Strikes . | . . . . . . . . . . . . . . . . . . . . . . . . . . . . . . Average Backups 13 | 1 8 12 16 19 19 14 5 8 10 10 10 10 9 10 9 10 10 8 9 8 10 12 11 13 13 14 13 14 8 Power 1 | . 1 2 2 2 1 1 1 1 1 1 1 1 . 1 1 1 1 . 1 . 1 1 2 2 2 2 1 2 1 Propulsion 1 | . 1 3 2 4 2 2 . . 2 2 2 2 1 1 1 1 1 . 1 1 2 2 3 3 2 2 1 1 . Utility 4 | . 1 3 5 5 6 6 2 2 3 3 3 3 2 4 4 6 6 3 4 3 3 5 3 5 5 6 6 5 3 Weapon 4 | . 4 4 6 8 7 3 1 2 2 2 2 2 2 2 1 1 1 2 2 2 4 3 3 3 3 3 3 4 3 Tool/Special . | . . . . . . . . . . . . . . . . . . . . . . . . . . . . . . Unused Backups 30 | . . . 3 1 6 8 . . . . . . 1 . 1 . . 4 . . . 2 . . . . 2 . 2 Power 9 | . . . 2 . 1 3 . . . . . . . . . . . 1 . . . 1 . . . . 1 . . Propulsion 3 | . . . . . 2 1 . . . . . . . . . . . . . . . . . . . . . . . Utility 10 | . . . . 1 1 3 . . . . . . 1 . . . . 1 . . . 1 . . . . 1 . 1 Weapon 6 | . . . 1 . 2 . . . . . . . . . . . . 2 . . . . . . . . . . 1 Tool/Special 2 | . . . . . . 1 . . . . . . . . 1 . . . . . . . . . . . . . . Average Slot Usage (%) 88 | . 98 100 96 85 85 87 100 82 93 93 93 93 89 94 91 94 94 91 94 90 94 84 84 84 84 84 82 79 68 Engine 5 | . 13 14 13 14 14 2 . . . . . . . . . . . . . . . . . . . . . . . Core 1 | . . . . . . 3 6 4 6 6 6 6 4 5 5 5 5 5 5 2 . . . . . . . . . Treads 6 | . 27 28 24 . . 1 . . . . . . . . . . . . . . . . . . . . . . . Leg 4 | . . . 1 14 14 15 . . . . . . . . . . . . . . . . . . . . . . . Flight 13 | . . . . . . 7 33 24 26 26 26 26 31 35 30 29 29 29 29 29 31 28 26 26 26 26 22 23 18 Device 6 | . 14 14 2 5 5 5 6 3 6 6 6 6 6 7 5 5 5 2 4 4 5 6 5 5 5 5 6 9 11 Storage 8 | . 14 14 13 14 14 4 . 5 6 6 6 6 5 5 5 5 5 5 5 5 5 5 5 5 5 5 4 4 3 Processor 6 | . . . . . . 14 13 13 13 13 13 13 11 11 11 11 11 11 11 10 10 8 5 5 5 5 4 4 12 Hackware 5 | . . . . . . 6 13 10 6 6 6 6 3 5 13 17 17 17 17 15 15 12 10 10 10 10 16 18 6 Protection 6 | . . . 12 8 8 5 6 2 6 6 6 6 8 8 2 . . 2 . . . 1 10 10 10 10 6 4 3 Energy Gun 1 | . 13 14 4 . . . . . . . . . . . . . . . . . . . . . . . . . . Ballistic Gun 7 | . 14 14 15 28 19 3 . . . . . . . . . . . . . . . . . . . . . . . Ballistic Cannon 2 | . . . . . 8 8 . . . . . . . . 1 5 5 . 3 3 . . . . . . . . . Impact Weapon 1 | . . . 3 . . . 6 6 6 5 6 6 1 . . . . . . 1 5 4 5 5 5 5 4 . . Slashing Weapon 2 | . . . . . . 2 6 6 6 6 6 6 5 5 5 5 5 5 5 5 5 3 . . . . . 3 1 Piercing Weapon 1 | . . . . . . 1 6 2 6 6 6 5 5 5 5 5 5 2 5 4 . 1 5 5 5 5 4 . 1 Peak Build Rating 174 | 7 10 10 35 31 36 74 69 72 72 74 75 73 82 80 91 91 91 100 99 119 118 127 125 125 128 130 141 163 174 Average Rating 64 | 5 8 9 16 30 33 62 68 62 72 72 72 73 76 79 84 91 91 94 94 111 118 113 124 125 126 128 134 157 138 On Entrance 80 | . 7 9 9 31 30 36 69 68 72 72 72 73 73 78 80 91 91 91 99 94 118 118 124 125 125 128 128 141 156 Avg Prop Armor Cover (%) 3 | . . . . . . 6 . . . . . . 2 2 2 . . . . . . . . . . . . . . Naked Turns . | . . . . . . . . . . . . . . . . . . . . . . . . . . . . . . Heaviest Build 78 | 13 33 33 72 54 64 78 22 28 27 27 27 27 31 29 37 33 33 40 34 47 42 50 50 50 50 53 53 55 55 Greatest Support 102 | 40 40 40 55 55 55 102 33 33 29 29 29 33 47 36 39 39 39 40 40 56 56 54 52 52 52 53 53 56 55 Greatest Overweight (x) 2 | . . . 1 . 1 1 . . . . . . 2 . . . . . . . . . . . . . . . 1 Average Overweight (x) . | . . . . . . . . . . . . . . . . . . . . . . . . . . . . . . Largest Inventory Capacity 20 | 8 15 15 20 20 20 20 5 10 10 10 10 10 10 10 10 10 10 10 10 10 10 15 15 15 15 15 15 15 15 Average Capacity 14 | 7 14 15 18 20 20 16 5 9 10 10 10 10 10 10 10 10 10 10 10 10 10 14 15 15 15 15 15 15 14 Most Carried 20 | 3 14 14 20 20 20 20 5 10 10 10 10 10 10 10 10 10 10 10 9 10 10 15 14 14 15 15 15 15 15 Average Carried 13 | 1 8 12 18 20 19 15 5 8 10 10 10 10 9 10 9 10 10 8 9 8 10 13 12 14 14 15 14 14 12 Final Capacity 20 | 8 15 15 20 20 20 5 5 10 10 10 10 10 10 10 10 10 10 10 10 10 10 15 15 15 15 15 15 15 15 Final Carried 20 | 3 12 14 20 20 20 5 5 10 10 10 10 10 10 10 10 10 10 9 9 10 10 12 14 14 15 15 15 15 4 Scrap Suit Usage (%) 1 | . . . . . . . . . . . . . . . . . . . . . . . . . . . . . 1 Class Distribution -------------------- 39% | Mutant 16% | Hacker-Sprinter 13% | Hacker-Scout 12% | Scout 3% | Scavenger-Mutant Dominant Class ---------------- Mutant | -10/Materials Mutant | -10/Mines Mutant | -10/Subcaves Mutant | -9/Recycling Mutant | -9/Scraptown Scavenger-Assassin | -6/Factory Hacker-Scout | -6/Waste Hacker-Mutant | -6/Factory Scout | -6/Lower Caves Scout | -6/Lower Caves Scout | -6/Zion Scout | -5/Proximity Caves Scout | -5/Factory Scout | -5/Waste Hacker-Scout | -5/Factory Hacker-Scout | -5/Upper Caves Hacker-Scout | -5/Upper Caves Hacker-Sprinter | -5/Warlord Hacker-Scout | -4/Proximity Caves Hacker-Scout | -4/Factory Hacker-Scout | -4/Waste Hacker-Sprinter | -4/Factory Hacker-Sprinter | -4/Upper Caves Hacker-Sprinter | -4/Upper Caves Hacker-Sprinter | -4/Zhirov Hacker-Sprinter | -3/Proximity Caves Hacker-Sprinter | -3/Research Hacker-Sprinter | -3/Quarantine Hacker-Sprinter | -3/Protoforge Resources | -11 -10 -10 -10 -9 -9 -6 -6 -6 -6 -6 -6 -5 -5 -5 -5 -5 -5 -5 -4 -4 -4 -4 -4 -4 -4 -3 -3 -3 -3 ----------- Run | Yrd Mat Min Sub Rec Scr Fac Was Fac Low Low Zio Pro Fac Was Fac Upp Upp War Pro Fac Was Fac Upp Upp Zhi Pro Res Qua Frg Matter Collected 6063 | 282 217 52 681 . 290 1524 . 83 39 95 94 . 284 136 216 4 . 150 . 170 . 208 245 150 . 131 154 40 818 Remotely . | . . . . . . . . . . . . . . . . . . . . . . . . . . . . . . Salvage Created 4766 | 104 359 91 408 . . 1062 . 252 . . . . 536 127 308 . . 251 . 122 . 279 . 113 . . 226 45 483 Parts 264 | 5 25 5 37 . . 64 . 14 . . . . 15 7 8 . . 9 . 9 . 16 . 6 . . 13 4 27 Haulers Intercepted 9 | . 1 . . . . 2 . . . . . . 2 . 1 . . . . 1 . 2 . . . . . . . Recyclers Shooed 7 | . 1 . . . . 5 . . . . . . . . . . . . . . . 1 . . . . . . . Parts Field Recycled . | . . . . . . . . . . . . . . . . . . . . . . . . . . . . . . Retrieved Matter . | . . . . . . . . . . . . . . . . . . . . . . . . . . . . . . Parts Self-Destructed 32 | . . . 14 . . . . . . 6 . 6 . . . . . . . . . . 3 3 . . . . . Prevented 5 | . . . . . . . . . . 4 . . . . . . . . . . . . . 1 . . . . . Parts Restored . | . . . . . . . . . . . . . . . . . . . . . . . . . . . . . . Kills | -11 -10 -10 -10 -9 -9 -6 -6 -6 -6 -6 -6 -5 -5 -5 -5 -5 -5 -5 -4 -4 -4 -4 -4 -4 -4 -3 -3 -3 -3 ------- Run | Yrd Mat Min Sub Rec Scr Fac Was Fac Low Low Zio Pro Fac Was Fac Upp Upp War Pro Fac Was Fac Upp Upp Zhi Pro Res Qua Frg Combat Hostiles Destroyed 109 | . 12 3 18 . . 20 . 5 . . . . 3 . 3 . . 18 . . . 12 . 6 . . . . 9 Melee 7 | . . . . . . 2 . 1 . . . . . . 2 . . . . . . . . . . . . . 2 Guns 20 | . 8 . 6 . . 2 . . . . . . . . . . . . . . . . . . . . . . 4 Cannons 12 | . . . . . . 10 . . . . . . . . . . . 1 . . . 1 . . . . . . . AOE 69 | . 4 3 12 . . 6 . 4 . . . . 2 . 1 . . 17 . . . 11 . 6 . . . . 3 Classes Destroyed 23 | 2 4 1 2 . . 5 . 1 . . . . . 1 . . . 3 . . . . . 1 . . . . 3 Worker 5 | . . 1 . . . 3 . . . . . . 1 . . . . . . . . . . . . . . . . Builder 8 | . . . . . . 3 . 1 . . . . . . . . . . . 1 . . . . . . 3 . . Tunneler 1 | 1 . . . . . . . . . . . . . . . . . . . . . . . . . . . . . Hauler 9 | . 1 . . . . 2 . . . . . . 2 . 1 . . . . 1 . 2 . . . . . . . Recycler 6 | 1 . 1 . . . 1 . 1 . . . . 1 . . . . . . . . . . . . . 1 . . Operator 4 | . . . . . . . . 1 . . . . . . . . . . . 1 . . . . . . 1 . 1 Watcher 8 | . 1 . . . . 1 . 1 . . . . 3 . 1 . . . . . . . . . . . . 1 . Swarmer 43 | . 6 3 6 . . 5 . 3 . . . . . . . . . 3 . . . 12 . 5 . . . . . Saboteur 4 | . . . . . . . . . . . . . . . . . . 3 . . . . . . . . . . 1 Grunt 30 | . 6 . 1 . . 7 . 1 . . . . . . 2 . . 8 . . . . . 1 . . . . 4 Brawler 3 | . . . . . . 1 . . . . . . . . . . . 2 . . . . . . . . . . . Duelist 1 | . . . . . . 1 . . . . . . . . . . . . . . . . . . . . . . . Protector 1 | . . . . . . . . . . . . . . . . . . 1 . . . . . . . . . . . Sentry 3 | . . . . . . 2 . . . . . . . . 1 . . . . . . . . . . . . . . Specialist 1 | . . . . . . . . . . . . . . . . . . 1 . . . . . . . . . . . Hunter 1 | . . . . . . . . . . . . . . . . . . . . . . . . . . . . . 1 Programmer 9 | . . . . . . 4 . 1 . . . . 3 . . . . . . . . . . . . . . . 1 Decapitator 1 | . . . . . . . . . . . . . . . . . . . . . . . . . . . . . 1 Executioner 1 | . . . . . . . . . . . . . . . . . . . . . . . . . . . . . 1 Subdweller 11 | . . . 11 . . . . . . . . . . . . . . . . . . . . . . . . . . Zionite 1 | . . . 1 . . . . . . . . . . . . . . . . . . . . . . . . . . Samaritan 1 | . . . . . . . . . . . . . . . . . . . . . . . . 1 . . . . . Martyr 2 | . . . . . . . . . . . . . . 2 . . . . . . . . . . . . . . . Best Kill Streak 9 | 1 3 5 3 . . 4 . 6 . . . . 3 . 1 . . 9 . 1 . 7 . 5 . . 2 1 2 Combat Bots Only 9 | . 3 3 3 . . 3 . 4 . . . . 2 . 1 . . 9 . . . 6 . 5 . . . . 2 Max Kills in Single Turn 6 | 1 2 3 2 . . 3 . 4 . . . . 2 1 1 . . 4 . 1 . 6 . 2 . . 1 1 2 Gunslinging . | . . . . . . . . . . . . . . . . . . . . . . . . . . . . . . Exploded 5 | . 2 2 2 . . 3 . 2 . . . . 1 . 1 . . 4 . . . 5 . 2 . . . . 2 Melee 1 | . . . . . . 1 . 1 . . . . . . 1 . . . . . . . . . . . . . 1 Uniques/NPCs Destroyed . | . . . . . . . . . . . . . . . . . . . . . . . . . . . . . . Combat | -11 -10 -10 -10 -9 -9 -6 -6 -6 -6 -6 -6 -5 -5 -5 -5 -5 -5 -5 -4 -4 -4 -4 -4 -4 -4 -3 -3 -3 -3 -------- Run | Yrd Mat Min Sub Rec Scr Fac Was Fac Low Low Zio Pro Fac Was Fac Upp Upp War Pro Fac Was Fac Upp Upp Zhi Pro Res Qua Frg Hostile Shots Fired 1172 | . 66 4 118 . . 178 . 88 10 . . 8 95 . 36 . 2 9 12 38 . 131 . 16 . . 16 6 339 Missed 528 | . 18 1 44 . . 51 . 43 7 . . 3 57 . 25 . . 4 9 19 . 56 . 6 . . 12 2 171 Hits 644 | . 48 3 74 . . 127 . 45 3 . . 5 38 . 11 . 2 5 3 19 . 75 . 10 . . 4 4 168 Melee 15 | . . . . . . 10 . 1 . . . . . . . . . . . . . . . . . . . . 4 Projectile 629 | . 48 3 74 . . 117 . 44 3 . . 5 38 . 11 . 2 5 3 19 . 75 . 10 . . 4 4 164 AOE 3 | . . . . . . . . . . . . . . . . . . . . . . 1 . . . . . . 2 Critical Strikes 23 | . 1 . . . . 3 . 1 . . . . 4 . 1 . 1 . . . . 3 . . . . . . 9 Actively Blocked 10 | . . . . . . . . . . . . . 2 . . . . . . . . 1 . . . . . . 7 Damage Taken 13049 | . 499 65 966 . . 2079 . 564 59 78 . 96 879 . 200 . 52 109 38 359 . 1384 . 243 . . 102 136 5141 Core 2901 | . 58 19 162 . . 179 . 164 . 78 . 37 242 . 80 . 27 23 23 110 . 423 . 38 . . 78 . 1160 Absorbed by Shields 32 | . . . . . . . . . . . . . . . . . . 17 . . . . . . . . . . 15 Redirected to Shielding 596 | . . . . . . 39 . . 19 . . 52 178 . 20 . . 67 . 17 . 77 . . . . . . 127 Regen/Repaired (Parts) 1663 | . 193 . . . 400 31 . . . . . . 137 188 95 . . 8 . . . 55 . . . . 68 38 450 Core Remaining (%) 52 | 100 . . . . 4 . . . . . . 46 . . . . . . 60 . . . . . . 50 . . . Volleys Fired 332 | 5 57 2 61 . . 68 . 4 . 3 . 5 5 . 12 . . 18 1 4 . 11 . 5 . 2 10 3 56 Largest 3 | 2 2 1 2 . . 3 . 1 . 1 . 1 1 . 1 . . 1 1 1 . 1 . 1 . 1 1 1 1 Hottest 150 | 90 60 33 73 . . 150 . 47 . 47 . 47 43 . 47 . . 100 47 47 . 105 . 80 . 105 105 105 105 Shots Fired 487 | 10 107 2 92 . . 138 . 4 . 3 . 5 5 . 12 . . 18 1 4 . 11 . 5 . 2 10 3 55 Gun 267 | 10 103 . 62 . . 44 . . . . . . . . . . . . . . . . . . . . . . 48 Cannon 140 | . . . 9 . . 88 . 2 . 3 . 5 . . 9 . . 1 1 3 . 3 . . . 2 10 3 1 Launcher 56 | . 4 2 21 . . 6 . 2 . . . . 2 . 3 . . . . . . 7 . 5 . . . . 4 Special 24 | . . . . . . . . . . . . . 3 . . . . 17 . 1 . 1 . . . . . . 2 Kinetic 310 | 2 53 . 57 . . 127 . 2 . 3 . 5 . . 9 . . . 1 3 . . . . . . . . 48 Thermal 91 | 8 50 . 14 . . . . . . . . . . . . . . . . . . 3 . . . 2 10 3 1 Explosive 76 | . 4 2 21 . . 6 . 2 . . . . 2 . 3 . . 17 . . . 8 . 5 . . . . 6 Electromagnetic 5 | . . . . . . 5 . . . . . . . . . . . . . . . . . . . . . . . Entropic 1 | . . . . . . . . . . . . . . . . . . 1 . . . . . . . . . . . Robot Hit Streak 30 | 2 8 3 11 . . 11 . 3 . . . . 5 . 1 . . 1 . 2 . 4 . 5 . . . . 30 Robot Miss Streak 6 | 3 6 . 5 . . 5 . . . . . . 2 . 1 . . 1 . . . . . . . . . . . Penetration Max 1 | . . . . . . 1 . . . . . . . . . . . . . . . . . . . . . . 1 Secondary Targets 1 | . . . 1 . . . . . . . . . . . . . . . . . . . . . . . . . . Max Gunslinging Chain 1 | . . . 1 . . . . . . . . . . . . . . . . . . . . . . . . . . Shots Hit Robots 301 | 4 59 1 48 . . 102 . 8 . . . . 18 3 9 . . 2 . 5 . 6 . 1 . . 6 1 28 Core Hits 262 | 3 27 5 29 . . 49 . 16 . . . . 8 2 10 . . 57 . 2 . 16 . 12 . . 1 1 24 Critical Kills 3 | . . . 1 . . . . . . . . . . . . . . . . . . . . . . . . . 2 Critical Parts Destroyed 5 | . . . 1 . . 1 . . . . . . 1 . . . . . . 1 . . . . . . . . 1 Critical Strikes 16 | . . . 3 . . 4 . . . . . . 2 . . . . . . 1 . . . . . . 2 . 4 Destroy 5 | . . . 1 . . 1 . . . . . . . . . . . . . . . . . . . . . . 3 Blast 1 | . . . . . . 1 . . . . . . . . . . . . . . . . . . . . . . . Smash 4 | . . . 2 . . . . . . . . . 1 . . . . . . 1 . . . . . . . . . Sever 2 | . . . . . . 1 . . . . . . . . . . . . . . . . . . . . . . 1 Impale 4 | . . . . . . 1 . . . . . . 1 . . . . . . . . . . . . . 2 . . Melee Attacks 394 | . . . 15 . . 44 . 25 1 31 . 14 56 3 43 . . 1 6 25 . 27 4 . . 7 46 7 39 Impact 102 | . . . 15 . . 2 . 3 . 21 . . 18 . . . . . . 4 . 19 2 . . 2 15 1 . Slashing 184 | . . . . . . 37 . 21 . 4 . 4 16 2 37 . . 1 5 17 . 1 . . . . . 5 34 Piercing 108 | . . . . . . 5 . 1 1 6 . 10 22 1 6 . . . 1 4 . 7 2 . . 5 31 1 5 Sneak Attacks 30 | . . . . . . 9 . 1 . . . . 4 3 3 . . . . 2 . 2 . . . . 4 1 1 Combat Hostiles . | . . . . . . . . . . . . . . . . . . . . . . . . . . . . . . Follow-up Attacks 9 | . . . . . . 4 . . . . . . 3 1 . . . . . . . 1 . . . . . . . Damage Inflicted 20659 | 41 816 269 1769 . . 3951 . 976 . . . . 1180 235 882 . . 4836 . 284 . 1732 . 626 . . 562 222 2278 Guns 2751 | 41 577 . 553 . . 419 . . . . . . . . . . . . . . . . . . . . . . 1161 Cannons 1781 | . . . . . . 1781 . . . . . . . . . . . . . . . . . . . . . . . Explosions 10987 | . 239 269 1134 . . 663 . 673 . . . . 245 . 420 . . 4666 . . . 1396 . 626 . . . . 656 Melee 4846 | . . . 82 . . 1067 . 303 . . . . 935 235 462 . . 48 . 284 . 290 . . . . 562 222 356 Ramming 21 | . . . . . . 21 . . . . . . . . . . . . . . . . . . . . . . . Kinetic 4025 | 6 264 . 419 . . 2175 . . . . . . . . . . . . . . . . . . . . . . 1161 Thermal 554 | 35 313 . 134 . . 72 . . . . . . . . . . . . . . . . . . . . . . . Explosive 10915 | . 239 269 1134 . . 591 . 673 . . . . 245 . 420 . . 4666 . . . 1396 . 626 . . . . 656 Electromagnetic 25 | . . . . . . 25 . . . . . . . . . . . . . . . . . . . . . . . Impact 1108 | . . . 82 . . 36 . . . . . . 611 . . . . . . 110 . 145 . . . . 124 . . Slashing 3011 | . . . . . . 939 . 303 . . . . 36 159 462 . . 170 . 174 . 85 . . . . . 222 461 Piercing 1000 | . . . . . . 92 . . . . . . 288 76 . . . . . . . 106 . . . . 438 . . Highest Corruption 11 | . . . . . . 7 . 1 1 2 2 . 5 5 5 . . . . 1 1 11 4 4 4 4 . . 5 Average Corruption 4 | . . . . . . 6 . 1 1 1 2 . 4 5 4 . . . . 1 1 9 4 4 4 4 . . 3 Corruption Purged 19 | . . . . . . 7 . . . . . . . . 5 . . . . . . 7 . . . . . . . Corruption Blocked . | . . . . . . . . . . . . . . . . . . . . . . . . . . . . . . Effects 131 | . . . . . . 28 . 2 . 2 . . 16 3 6 . . . . 4 . 33 1 3 1 4 . . 28 Message Errors 26 | . . . . . . 5 . . . . . . 5 . 1 . . . . 1 . 4 . 2 . 2 . . 6 Matter Fused 22 | . . . . . . 3 . . . 2 . . 2 1 1 . . . . . . 4 1 1 1 2 . . 4 Heat Flow Errors 16 | . . . . . . 4 . 1 . . . . 2 . . . . . . . . 6 . . . . . . 3 Energy Discharges 18 | . . . . . . 1 . 1 . . . . 3 . 1 . . . . 2 . 3 . . . . . . 7 Parts Rejected 3 | . . . . . . 2 . . . . . . . . . . . . . . . . . . . . . . 1 Parts Fused 2 | . . . . . . 1 . . . . . . . . . . . . . . . 1 . . . . . . . Data Loss (minor) 20 | . . . . . . 7 . . . . . . 1 1 1 . . . . 1 . 4 . . . . . . 5 Data Loss (major) 8 | . . . . . . 2 . . . . . . 1 . 2 . . . . . . 2 . . . . . . 1 Misfires 2 | . . . . . . 2 . . . . . . . . . . . . . . . . . . . . . . . Alerts 4 | . . . . . . . . . . . . . 2 1 . . . . . . . 1 . . . . . . . Misdirections 8 | . . . . . . . . . . . . . . . . . . . . . . 8 . . . . . . . Weapon Failures 2 | . . . . . . 1 . . . . . . . . . . . . . . . . . . . . . . 1 Overload Shots . | . . . . . . . . . . . . . . . . . . . . . . . . . . . . . . Overflow Damage 1338 | . . 21 20 . . 298 . 15 . . . . 239 23 15 . . 31 . 110 . 89 . 3 . . 261 . 213 Projectiles 77 | . . . . . . 77 . . . . . . . . . . . . . . . . . . . . . . . Explosions 203 | . . 21 . . . 49 . 15 . . . . 24 . 15 . . 31 . . . 45 . 3 . . . . . Melee 1058 | . . . 20 . . 172 . . . . . . 215 23 . . . . . 110 . 44 . . . . 261 . 213 Knockbacks 21 | . . . 1 . . 17 . . . . . . 3 . . . . . . . . . . . . . . . . Impact 4 | . . . 1 . . . . . . . . . 3 . . . . . . . . . . . . . . . . Kinetic 15 | . . . . . . 15 . . . . . . . . . . . . . . . . . . . . . . . Secondary 2 | . . . . . . 2 . . . . . . . . . . . . . . . . . . . . . . . Self-Inflicted Damage 263 | . . 38 29 . . 181 . . . . . . 15 . . . . . . . . . . . . . . . . Shots 5 | . . 1 1 . . 2 . . . . . . 1 . . . . . . . . . . . . . . . . Rammed . | . . . . . . . . . . . . . . . . . . . . . . . . . . . . . . Targets Rammed 3 | . . . . . . 3 . . . . . . . . . . . . . . . . . . . . . . . Kicked 3 | . . . . . . 3 . . . . . . . . . . . . . . . . . . . . . . . Crushed . | . . . . . . . . . . . . . . . . . . . . . . . . . . . . . . Highest Temperature 459 | 90 137 . 1 . . 415 . 202 . . . 19 230 . 24 . 13 40 . 381 200 459 . 9 . 6 3 . 371 Average Temperature 102 | 40 38 . 1 . . 112 . 49 . . . 17 106 . 14 . 13 23 . 115 48 132 . 6 . 4 2 . 138 Received Heat Transfer 1831 | . 174 . 276 . . 477 . 144 . . . 27 129 . 36 . 27 4 . 42 . 84 . 18 . . 27 9 357 Effects 6 | . . . . . . 1 . . . . . . . . . . . . . 2 . 3 . . . . . . . Shutdowns 2 | . . . . . . 1 . . . . . . . . . . . . . 1 . . . . . . . . . Interference 1 | . . . . . . . . . . . . . . . . . . . . 1 . . . . . . . . . Short Circuit 2 | . . . . . . . . . . . . . . . . . . . . . . 2 . . . . . . . Damage (major) 1 | . . . . . . . . . . . . . . . . . . . . . . 1 . . . . . . . Siege Activations . | . . . . . . . . . . . . . . . . . . . . . . . . . . . . . . Martial Activations . | . . . . . . . . . . . . . . . . . . . . . . . . . . . . . . Shielding Activations . | . . . . . . . . . . . . . . . . . . . . . . . . . . . . . . Robots Disrupted . | . . . . . . . . . . . . . . . . . . . . . . . . . . . . . . Combat Hostiles . | . . . . . . . . . . . . . . . . . . . . . . . . . . . . . . Robots Corrupted 5 | . . . . . . . . . . . . . 3 . . . . . . 1 . . . . . . 1 . . Combat Hostiles 1 | . . . . . . . . . . . . . 1 . . . . . . . . . . . . . . . . Parts Fried 7 | . . . . . . . . . . . . . 4 . . . . . . 2 . . . . . . 1 . . Impact Corruptions 15 | . . . 1 . . 1 . . . . . . 8 . . . . . . 2 . 1 . . . . 2 . . Robots Melted . | . . . . . . . . . . . . . . . . . . . . . . . . . . . . . . Combat Hostiles . | . . . . . . . . . . . . . . . . . . . . . . . . . . . . . . Parts Melted 1 | . 1 . . . . . . . . . . . . . . . . . . . . . . . . . . . . Heat Transferred 1187 | 87 700 . 300 . . 100 . . . . . . . . . . . . . . . . . . . . . . . Parts Sabotaged 1 | . . . . . . . . . . . . . . . . . . . . . . . . . . . . . 1 Parts Stolen . | . . . . . . . . . . . . . . . . . . . . . . . . . . . . . . Parts Stripped . | . . . . . . . . . . . . . . . . . . . . . . . . . . . . . . Power Chain Reactions . | . . . . . . . . . . . . . . . . . . . . . . . . . . . . . . Alert | -11 -10 -10 -10 -9 -9 -6 -6 -6 -6 -6 -6 -5 -5 -5 -5 -5 -5 -5 -4 -4 -4 -4 -4 -4 -4 -3 -3 -3 -3 ------- Run | Yrd Mat Min Sub Rec Scr Fac Was Fac Low Low Zio Pro Fac Was Fac Upp Upp War Pro Fac Was Fac Upp Upp Zhi Pro Res Qua Frg Maximum Alert Level 2 | . . . . . . 1 . 1 . . . . 2 . 1 . . . . . . 2 . . . . . . . Low Security (%) 85 | 100 100 100 . 100 . 85 100 63 . . . . 62 100 39 . . . . 100 100 80 . . . . 100 100 100 Level 1 12 | . . . . . . 14 . 36 . . . . 19 . 60 . . . . . . 9 . . . . . . . Level 2 2 | . . . . . . . . . . . . . 18 . . . . . . . . 9 . . . . . . . Level 3 . | . . . . . . . . . . . . . . . . . . . . . . . . . . . . . . Level 4 . | . . . . . . . . . . . . . . . . . . . . . . . . . . . . . . Level 5 . | . . . . . . . . . . . . . . . . . . . . . . . . . . . . . . High Security . | . . . . . . . . . . . . . . . . . . . . . . . . . . . . . . Max Security . | . . . . . . . . . . . . . . . . . . . . . . . . . . . . . . Peak Influence 685 | 5 101 119 . 188 . 340 118 260 . . . . 501 99 345 . . . . 104 . 685 . . . . 42 52 168 Initial 450 | . . 14 . 103 . . 118 . . . . . 450 47 34 . . . . . . . . . . . . 13 13 Average 92 | . 44 34 . 131 . 71 70 141 . . . . 220 65 189 . . . . 39 . 109 . . . . 8 36 82 Influence Increases 8200 | 10 450 175 316 201 . 910 18 495 30 30 . 114 1081 92 844 . . 680 . 225 . 1281 . 175 . . 207 102 764 Destroy 0b10 Robot/C 2240 | . 240 100 140 . . 400 . 100 . 20 . 40 60 . 220 . . 380 . . . 240 . 120 . . . . 180 Destroy 0b10 Robot/NC 210 | 10 10 10 . . . 50 . 20 . . . . 35 . 10 . . 5 . 15 . 10 . . . . 25 5 5 Destroy Leader 354 | . 54 20 10 . . 76 . 22 . 10 . . 30 . 54 . . . . 2 . 24 . 10 . . . 2 40 Allied During Kill 229 | . . 14 1 . . . . . . . . 14 . . 70 . . 130 . . . . . . . . . . . Successful Hack 368 | . 31 . . 21 . 86 . . . . . . 73 . 23 . . . . 35 . 40 . . . . 26 27 6 Select Force Hacks 180 | . . . . 180 . . . . . . . . . . . . . . . . . . . . . . . . . Disable Machine 450 | . 45 15 . . . 90 . 45 . . . . . . 30 . . . . . . 120 . . . . 15 30 60 Destroy Structure 899 | . 25 16 . . . 103 18 23 . . . . 88 92 122 . . . . 38 . 232 . . . . 66 8 68 Advance Influence 450 | . . . . . . . . . . . . . 450 . . . . . . . . . . . . . . . . Partial Spotted 450 | . . . . . . 30 . . . . . . 30 . 135 . . . . 15 . 90 . . . . 45 30 75 Lose Combat Pursuer 2370 | . 45 . 165 . . 75 . 285 30 . . 60 315 . 180 . . 165 . 120 . 525 . 45 . . 30 . 330 Influence Decreases 8178 | 10 413 209 104 334 82 572 356 312 108 135 . 114 946 178 869 24 . 180 500 225 . 596 314 112 434 . 183 101 767 Entered New Map 1925 | . . 23 3 112 82 . 220 . 68 21 . . . 88 15 10 . . 500 . . . 254 72 434 . . 11 12 Time Decay 4012 | 10 396 186 91 222 . 410 50 192 40 74 . 70 356 90 370 14 . 140 . 149 . 224 60 40 . . 183 90 555 Search Patrol Dispatched 200 | . . . . . . . . 100 . . . . 100 . . . . . . . . . . . . . . . . Lost Part 418 | . 17 . 10 . . 71 . 20 . . . . 30 . 10 . . . . 10 . 50 . . . . . . 200 Lost Ally 456 | . . . . . . . 86 . . 40 . 44 10 . 214 . . 40 . . . 22 . . . . . . . Purge Threat 1167 | . . . . . . 91 . . . . . . 450 . 260 . . . . 66 . 300 . . . . . . . Squads Dispatched 91 | . 2 . . . . 13 . 14 . . . . 14 . 15 . . . . 10 . 9 . . . . 4 1 9 Investigation 48 | . 1 . . . . 5 . 8 . . . . 9 . 8 . . . . 7 . 5 . . . . 2 . 3 Extermination 24 | . . . . . . 5 . 2 . . . . 4 . 4 . . . . 2 . 3 . . . . 2 . 2 Reinforcement 19 | . 1 . . . . 3 . 4 . . . . 1 . 3 . . . . 1 . 1 . . . . . 1 4 Assault . | . . . . . . . . . . . . . . . . . . . . . . . . . . . . . . Garrison . | . . . . . . . . . . . . . . . . . . . . . . . . . . . . . . Intercept . | . . . . . . . . . . . . . . . . . . . . . . . . . . . . . . Searches Triggered 2 | . . . . . . . . 1 . . . . 1 . . . . . . . . . . . . . . . . Unchained Authorized 2 | . . . . . . . . . . . . . . . . . . . . 1 . 1 . . . . . . . Construction Impeded 2 | . . . . . . 1 . 1 . . . . . . . . . . . . . . . . . . . . . Haulers Reinforced 4 | . . . . . . 1 . 1 . . . . . . 1 . . . . 1 . . . . . . . . . Active Scanning Responses . | . . . . . . . . . . . . . . . . . . . . . . . . . . . . . . Cargo Convoy Interrupts 1 | . . . . . . . . . . . . . . . 1 . . . . . . . . . . . . . . Stealth | -11 -10 -10 -10 -9 -9 -6 -6 -6 -6 -6 -6 -5 -5 -5 -5 -5 -5 -5 -4 -4 -4 -4 -4 -4 -4 -3 -3 -3 -3 --------- Run | Yrd Mat Min Sub Rec Scr Fac Was Fac Low Low Zio Pro Fac Was Fac Upp Upp War Pro Fac Was Fac Upp Upp Zhi Pro Res Qua Frg Distress Signals 25 | . . . . . . 3 . . . . . . 1 . 1 . . . . . . 9 . . . . . 1 10 Communications Jammed . | . . . . . . . . . . . . . . . . . . . . . . . . . . . . . . Distress Signals . | . . . . . . . . . . . . . . . . . . . . . . . . . . . . . . Times Spotted 647 | . 24 3 28 . . 47 8 36 7 . . 10 55 7 26 . 1 51 3 46 1 94 1 8 . 1 13 4 173 Peak Tracking Total 20 | . 4 3 5 . . 8 6 12 6 . . 5 13 4 7 . 1 20 3 17 1 19 1 7 . 1 5 3 19 Tactical Retreats 112 | . 2 . 4 . . 3 2 8 2 . . 2 14 1 7 . . 3 . 8 . 18 . 1 . . 4 . 33 ECM-based Alert Blocks 133 | . . . . . . . . . . . . . 21 . . . . . . 28 . 9 . . . . 4 . 71 Traps | -11 -10 -10 -10 -9 -9 -6 -6 -6 -6 -6 -6 -5 -5 -5 -5 -5 -5 -5 -4 -4 -4 -4 -4 -4 -4 -3 -3 -3 -3 ------- Run | Yrd Mat Min Sub Rec Scr Fac Was Fac Low Low Zio Pro Fac Was Fac Upp Upp War Pro Fac Was Fac Upp Upp Zhi Pro Res Qua Frg Traps Triggered 25 | . . . 3 . . 5 . 1 . 1 . . 5 . . . . . . 1 . 1 . . . . 4 . 4 Indirectly . | . . . . . . . . . . . . . . . . . . . . . . . . . . . . . . Trap Hack Attempts . | . . . . . . . . . . . . . . . . . . . . . . . . . . . . . . Triggered . | . . . . . . . . . . . . . . . . . . . . . . . . . . . . . . Disarmed . | . . . . . . . . . . . . . . . . . . . . . . . . . . . . . . Reprogrammed . | . . . . . . . . . . . . . . . . . . . . . . . . . . . . . . Reused . | . . . . . . . . . . . . . . . . . . . . . . . . . . . . . . Traps Extracted . | . . . . . . . . . . . . . . . . . . . . . . . . . . . . . . Installed . | . . . . . . . . . . . . . . . . . . . . . . . . . . . . . . Triggered . | . . . . . . . . . . . . . . . . . . . . . . . . . . . . . . Machines | -11 -10 -10 -10 -9 -9 -6 -6 -6 -6 -6 -6 -5 -5 -5 -5 -5 -5 -5 -4 -4 -4 -4 -4 -4 -4 -3 -3 -3 -3 ---------- Run | Yrd Mat Min Sub Rec Scr Fac Was Fac Low Low Zio Pro Fac Was Fac Upp Upp War Pro Fac Was Fac Upp Upp Zhi Pro Res Qua Frg Machines Disabled 38 | . 3 1 1 . . 6 . 3 . 1 . . . . 2 . . 3 . . . 8 1 . . . 1 2 6 Max in Single Turn 4 | . 2 1 1 . . 3 . 1 . 1 . . . . 1 . . 2 . . . 4 1 . . . 1 1 4 Garrison Access 9 | . . . . . . 1 . . . . . . 1 . 3 . . . . . . . . . . . 2 1 1 Machines Repaired . | . . . . . . . . . . . . . . . . . . . . . . . . . . . . . . Machines Dismantled . | . . . . . . . . . . . . . . . . . . . . . . . . . . . . . . Machines Sabotaged . | . . . . . . . . . . . . . . . . . . . . . . . . . . . . . . Overloaded Fab Kills . | . . . . . . . . . . . . . . . . . . . . . . . . . . . . . . Hacking | -11 -10 -10 -10 -9 -9 -6 -6 -6 -6 -6 -6 -5 -5 -5 -5 -5 -5 -5 -4 -4 -4 -4 -4 -4 -4 -3 -3 -3 -3 --------- Run | Yrd Mat Min Sub Rec Scr Fac Was Fac Low Low Zio Pro Fac Was Fac Upp Upp War Pro Fac Was Fac Upp Upp Zhi Pro Res Qua Frg Machines Accessed 188 | . 9 . 2 9 4 23 . 9 1 2 . . 26 . 26 . 1 4 . 18 . 23 . . 7 . 13 3 8 Terminals 87 | . 8 . . 3 . 11 . 2 . . . . 11 . 11 . . . . 10 . 16 . . . . 8 2 5 Fabricators 12 | . . . . . . 4 . . . . . . 3 . 2 . . . . . . 2 . . . . 1 . . Repair Stations 7 | . 1 . . . . 1 . . . . . . 2 . 1 . . . . . . 1 . . . . 1 . . Recycling Units 44 | . . . . 6 . 4 . 7 . . . . 6 . 8 . . . . 6 . 4 . . . . 1 . 2 Scanalyzers 7 | . . . . . . 1 . . . . . . 3 . 1 . . . . 2 . . . . . . . . . Garrison Access 10 | . . . . . . 2 . . . . . . 1 . 3 . . . . . . . . . . . 2 1 1 Total Hacks 520 | . 30 . 13 18 29 51 . 23 1 4 . . 73 . 55 . 1 13 . 35 . 58 . . 46 . 37 9 24 Successful 373 | . 16 . 13 15 29 29 . 14 1 4 . . 43 . 39 . 1 13 . 27 . 41 . . 46 . 22 6 14 Failed 145 | . 14 . . 3 . 22 . 9 . . . . 30 . 16 . . . . 7 . 16 . . . . 15 3 10 Catastrophic 17 | . 1 . . 1 . 3 . 1 . . . . 5 . 3 . . . . . . 1 . . . . 1 . 1 Database Lockouts 2 | . . . . . . . . . . . . . . . . . . . . 1 . 1 . . . . . . . Manual 215 | . 16 . . 13 . 19 . 12 . 1 . . 33 . 33 . . . . 19 . 37 . . . . 18 2 12 Terminals 252 | . 23 . . 8 . 29 . 3 . . . . 36 . 28 . . . . 26 . 48 . . . . 28 8 15 Fabricators 25 | . . . . . . 7 . . . . . . 7 . 5 . . . . . . 4 . . . . 2 . . Repair Stations 18 | . 7 . . . . 1 . . . . . . 4 . 2 . . . . . . 2 . . . . 2 . . Recycling Units 86 | . . . . 10 . 9 . 20 . . . . 13 . 14 . . . . 7 . 4 . . . . 2 . 7 Scanalyzers 17 | . . . . . . 2 . . . . . . 12 . 1 . . . . 2 . . . . . . . . . Garrison Access 15 | . . . . . . 3 . . . . . . 1 . 5 . . . . . . . . . . . 3 1 2 Terminal Hacks 201 | . 3 . 13 2 29 10 . . 1 4 . . 13 . 10 . 1 13 . 15 . 22 . . 46 . 9 3 7 Record 86 | . . . 12 . 25 . . . . 3 . . . . . . . 12 . . . . . . 34 . . . . Part Schematic 8 | . . . . . . . . . . . . . . . . . . . . 1 . 2 . . 4 . 1 . . Robot Analysis 8 | . . . . . 4 . . . . . . . . . . . . . . . . . . . 4 . . . . Prototype ID Bank 10 | . . . . . . 1 . . . . . . 1 . . . . . . 1 . 2 . . 4 . 1 . . Open Door 4 | . . . . . . . . . 1 1 . . . . . . 1 1 . . . . . . . . . . . Level Access Points 1 | . . . . . . . . . . . . . . . . . . . . . . . . . . . . 1 . Branch Access Points 4 | . . . . . . 1 . . . . . . . . 1 . . . . . . 1 . . . . 1 . . Emergency Access Points 1 | . . . . 1 . . . . . . . . . . . . . . . . . . . . . . . . . Machine Index 1 | . . . . . . . . . . . . . . . . . . . . 1 . . . . . . . . . Terminal Index 5 | . 1 . . . . . . . . . . . 1 . 1 . . . . . . 1 . . . . . . 1 Recycling Unit Index 2 | . . . . . . . . . . . . . . . . . . . . . . 1 . . . . 1 . . Alert Level 3 | . . . . . . 1 . . . . . . . . . . . . . 1 . . . . . . . . 1 Unreport Threat 9 | . . . . . . 1 . . . . . . 3 . 2 . . . . 1 . 2 . . . . . . . Locate Traps 17 | . . . . . . 3 . . . . . . 2 . 3 . . . . 3 . 2 . . . . . 1 3 Patrol Status 1 | . . . . . . . . . . . . . . . . . . . . . . . . . . . 1 . . Recall Investigation 4 | . . . . . . . . . . . . . . . 1 . . . . . . 2 . . . . 1 . . Recall Extermination 6 | . . . . . . . . . . . . . 1 . . . . . . 1 . 2 . . . . 1 . 1 Hauler Manifests 2 | . 1 . . . . 1 . . . . . . . . . . . . . . . . . . . . . . . Registered Components 7 | . 1 . . . . 1 . . . . . . 1 . 1 . . . . 1 . 1 . . . . 1 . . Registered Prototypes 3 | . . . . . . . . . . . . . 1 . . . . . . 1 . 1 . . . . . . . Zone Layout 18 | . . . . 1 . 1 . . . . . . 3 . 1 . . . . 4 . 5 . . . . 1 1 1 Proto ID Catalog 1 | . . . 1 . . . . . . . . . . . . . . . . . . . . . . . . . . Fabricator Hacks 9 | . . . . . . 1 . . . . . . 2 . 2 . . . . . . 2 . . . . 2 . . Network Status 3 | . . . . . . . . . . . . . 2 . 1 . . . . . . . . . . . . . . Load Schematic 2 | . . . . . . . . . . . . . . . . . . . . . . 1 . . . . 1 . . Build 4 | . . . . . . 1 . . . . . . . . 1 . . . . . . 1 . . . . 1 . . Repair Station Hacks 15 | . 6 . . . . . . . . . . . 3 . 2 . . . . . . 2 . . . . 2 . . Scan Component 8 | . 3 . . . . . . . . . . . 2 . 1 . . . . . . 1 . . . . 1 . . Repair 7 | . 3 . . . . . . . . . . . 1 . 1 . . . . . . 1 . . . . 1 . . Recycling Unit Hacks 25 | . . . . 4 . 4 . 9 . . . . 2 . 5 . . . . . . . . . . . . . 1 Report Inventory 21 | . . . . 4 . 3 . 6 . . . . 2 . 5 . . . . . . . . . . . . . 1 Retrieve Components 4 | . . . . . . 1 . 3 . . . . . . . . . . . . . . . . . . . . . Scanalyzer 15 | . . . . . . 2 . . . . . . 10 . 1 . . . . 2 . . . . . . . . . Insert Component 4 | . . . . . . . . . . . . . 4 . . . . . . . . . . . . . . . . Analyze 4 | . . . . . . . . . . . . . 4 . . . . . . . . . . . . . . . . Retrieve Study 7 | . . . . . . 2 . . . . . . 2 . 1 . . . . 2 . . . . . . . . . Garrison Access Hacks 9 | . . . . . . 1 . . . . . . 1 . 3 . . . . . . . . . . . 2 1 1 Seal Access 9 | . . . . . . 1 . . . . . . 1 . 3 . . . . . . . . . . . 2 1 1 Unauthorized Hacks 99 | . 7 . . 9 . 11 . 5 . . . . 12 . 16 . . . . 10 . 15 . . . . 7 2 5 Terminals 54 | . 7 . . 3 . 5 . . . . . . 7 . 6 . . . . 5 . 9 . . . . 6 2 4 Track 3 | . . . . . . . . . . . . . . . . . . . . . . 1 . . . . 1 . 1 Assimilate 13 | . . . . . . 2 . . . . . . 2 . 2 . . . . 2 . 3 . . . . 1 1 . Botnet 29 | . 1 . . 3 . 3 . . . . . . 5 . 4 . . . . 3 . 4 . . . . 3 1 2 Operators 3 | . . . . . . . . . . . . . . . . . . . . . . 1 . . . . 1 . 1 Skim 6 | . 6 . . . . . . . . . . . . . . . . . . . . . . . . . . . . Fabricators 8 | . . . . . . 3 . . . . . . . . 3 . . . . . . 2 . . . . . . . Prioritize 3 | . . . . . . 1 . . . . . . . . 1 . . . . . . 1 . . . . . . . Liberate 4 | . . . . . . 2 . . . . . . . . 2 . . . . . . . . . . . . . . Recompile 1 | . . . . . . . . . . . . . . . . . . . . . . 1 . . . . . . . Repair Stations 1 | . . . . . . 1 . . . . . . . . . . . . . . . . . . . . . . . Patch 1 | . . . . . . 1 . . . . . . . . . . . . . . . . . . . . . . . Recycling Units 36 | . . . . 6 . 2 . 5 . . . . 5 . 7 . . . . 5 . 4 . . . . 1 . 1 Tunnel 6 | . . . . 6 . . . . . . . . . . . . . . . . . . . . . . . . . Fedlink 30 | . . . . . . 2 . 5 . . . . 5 . 7 . . . . 5 . 4 . . . . 1 . 1 Scanalyzers . | . . . . . . . . . . . . . . . . . . . . . . . . . . . . . . Garrison Access . | . . . . . . . . . . . . . . . . . . . . . . . . . . . . . . Data Cores Recovered 3 | . . . . . . . . 1 . . . . . . . . . . . 1 . . . . . . . . 1 Used . | . . . . . . . . . . . . . . . . . . . . . . . . . . . . . . Hacking Detections 122 | . 9 . . 4 . 17 . 8 . . . . 21 . 17 . . . . 12 . 17 . . . . 10 2 5 Full Trace Events 13 | . 1 . . . . 1 . 2 . . . . 4 . 1 . . . . 2 . . . . . . 1 . 1 Feedback Events 2 | . . . . . . . . 1 . . . . . . . . . . . 1 . . . . . . . . . Corruption 2 | . . . . . . . . 1 . . . . . . . . . . . 1 . . . . . . . . . Feedback Blocked . | . . . . . . . . . . . . . . . . . . . . . . . . . . . . . . Robot Schematics Acquired . | . . . . . . . . . . . . . . . . . . . . . . . . . . . . . . Robots Built 3 | . . . . . . . . . . . . . . . 3 . . . . . . . . . . . . . . Authchips . | . . . . . . . . . . . . . . . . . . . . . . . . . . . . . . Time 76 | . . . . . . . . . . . . . . . 76 . . . . . . . . . . . . . . Total Robot Build Rating 15 | . . . . . . . . . . . . . . . 15 . . . . . . . . . . . . . . Part Schematics Acquired 11 | . . . . . . . . . . . . . 3 . . . . . . 1 . 2 . . 4 . 1 . . Parts Built 5 | . . . . . . 2 . . . . . . . . . . . . . . . 1 . . . . 2 . . Authchips 1 | . . . . . . . . . . . . . . . . . . . . . . 1 . . . . . . . Time 176 | . . . . . . 53 . . . . . . . . . . . . . . . 84 . . . . 39 . . Total Part Build Rating 32 | . . . . . . 12 . . . . . . . . . . . . . . . 6 . . . . 14 . . Part Studies Acquired 7 | . . . . . . 2 . . . . . . 2 . 1 . . . . 2 . . . . . . . . . Parts Repaired 7 | . 3 . . . . . . . . . . . 1 . 1 . . . . . . 1 . . . . 1 . . Time 315 | . 84 . . . . . . . . . . . 40 . 80 . . . . . . 43 . . . . 68 . . Parts Recycled . | . . . . . . . . . . . . . . . . . . . . . . . . . . . . . . Recycled Matter . | . . . . . . . . . . . . . . . . . . . . . . . . . . . . . . Retrieved Matter . | . . . . . . . . . . . . . . . . . . . . . . . . . . . . . . Retrieved Components 10 | . . . . . . 2 . 8 . . . . . . . . . . . . . . . . . . . . . Parts Scanalyzed 4 | . . . . . . . . . . . . . 4 . . . . . . . . . . . . . . . . Part Schematics Acquired 3 | . . . . . . . . . . . . . 3 . . . . . . . . . . . . . . . . Parts Damaged . | . . . . . . . . . . . . . . . . . . . . . . . . . . . . . . Bothacking | -11 -10 -10 -10 -9 -9 -6 -6 -6 -6 -6 -6 -5 -5 -5 -5 -5 -5 -5 -4 -4 -4 -4 -4 -4 -4 -3 -3 -3 -3 ------------ Run | Yrd Mat Min Sub Rec Scr Fac Was Fac Low Low Zio Pro Fac Was Fac Upp Upp War Pro Fac Was Fac Upp Upp Zhi Pro Res Qua Frg Used RIF Installer . | . . . . . . . . . . . . . . . . . . . . . . . . . . . . . . Robots Hacked 2 | . . . . . . . . . . . . . 1 . . . . . . 1 . . . . . . . . . Non-combat 2 | . . . . . . . . . . . . . 1 . . . . . . 1 . . . . . . . . . Combat . | . . . . . . . . . . . . . . . . . . . . . . . . . . . . . . Robot Hacks Applied 2 | . . . . . . . . . . . . . 1 . . . . . . 1 . . . . . . . . . find_chute 2 | . . . . . . . . . . . . . 1 . . . . . . 1 . . . . . . . . . Relay Couplers Released . | . . . . . . . . . . . . . . . . . . . . . . . . . . . . . . Fabnet Peak Effective % . | . . . . . . . . . . . . . . . . . . . . . . . . . . . . . . Robots Rewired 5 | . . . . . . . . . . . . . . . . . . 5 . . . . . . . . . . . Allies Hacked 3 | . . . . . . . . . . . . . . . 3 . . . . . . . . . . . . . . Hacks Repelled . | . . . . . . . . . . . . . . . . . . . . . . . . . . . . . . Allies | -11 -10 -10 -10 -9 -9 -6 -6 -6 -6 -6 -6 -5 -5 -5 -5 -5 -5 -5 -4 -4 -4 -4 -4 -4 -4 -3 -3 -3 -3 -------- Run | Yrd Mat Min Sub Rec Scr Fac Was Fac Low Low Zio Pro Fac Was Fac Upp Upp War Pro Fac Was Fac Upp Upp Zhi Pro Res Qua Frg Total Allies 66 | . . 3 . . . 1 19 . . 3 5 . 1 18 6 . . 5 . 1 . 3 . . . . 1 . . Largest Group 19 | . . 3 3 . . 1 19 . . 3 5 5 1 18 11 . . 5 . 1 . 1 . . . . 1 . . Highest-Rated Group 684 | . . 77 77 . . 10 684 . . 93 138 138 10 656 389 . . 267 . 45 . 45 . . . . 45 . . Highest-Rated Ally 64 | . . 31 31 . . 10 50 . . 31 39 39 10 50 46 . . 64 . 45 . 45 . . . . 45 . . Total Orders 6 | . . . . . . . . . . . . . . . . . . 6 . . . . . . . . . . . STAY 5 | . . . . . . . . . . . . . . . . . . 5 . . . . . . . . . . . FOLLOW 1 | . . . . . . . . . . . . . . . . . . 1 . . . . . . . . . . . Ally Attacks 313 | . . 6 13 . . . 79 . . 13 . 27 . 101 64 . . 10 . . . . . . . . . . . Total Damage 11752 | . . 124 267 . . . 3036 . . 146 . 458 . 5649 1673 . . 399 . . . . . . . . . . . Kills 37 | . . 2 2 . . . 6 . . 2 . 2 . 11 9 . . 3 . . . . . . . . . . . Allies Corrupted 3 | . . . . . . . . . . . . 2 . . 1 . . . . . . . . . . . . . . Allies Melted 1 | . . . . . . . . . . . . . . . . . . . . . . . . . . . . . 1 Intel | -11 -10 -10 -10 -9 -9 -6 -6 -6 -6 -6 -6 -5 -5 -5 -5 -5 -5 -5 -4 -4 -4 -4 -4 -4 -4 -3 -3 -3 -3 ------- Run | Yrd Mat Min Sub Rec Scr Fac Was Fac Low Low Zio Pro Fac Was Fac Upp Upp War Pro Fac Was Fac Upp Upp Zhi Pro Res Qua Frg Active Infowar (turns) 12767 | 26 1052 531 460 168 764 2330 120 503 95 286 429 356 815 180 951 145 87 599 129 392 15 521 . . . . 338 158 1317 Optics 5993 | . . . . . . 479 120 503 95 286 429 356 815 180 951 145 87 599 129 392 15 412 . . . . . . . Sensors 6930 | . . . . . . 1422 120 295 95 286 429 356 802 180 947 145 87 244 126 232 . 306 . . . . 223 158 477 IFF 165 | . . . . . . 165 . . . . . . . . . . . . . . . . . . . . . . . Terrain 1 | . . . . . . . . . . . . . . . . . . . . . . . . . . . 1 . . Structural 353 | . . . . 168 . 185 . . . . . . . . . . . . . . . . . . . . . . . Seismic 2833 | 26 1052 531 460 . 764 . . . . . . . . . . . . . . . . . . . . . . . . Machine Analysis 1849 | . . . . . . 1849 . . . . . . . . . . . . . . . . . . . . . . . Cloaking 393 | . . . . . . . . . . . . . . . . . . 2 . . . . . . . . . . 391 ECM 1303 | . . . . . . . . . . . . . 217 88 . . . . . 151 15 127 . . . . 114 . 591 Robot Analysis Total 8 | . . . . . 4 . . . . . . . . . . . . . . . . . . . 4 . . . . Derelict Logs Recovered 14 | . . 1 1 . 3 . . . 1 2 1 1 . . . 1 1 . . . . . 2 . . . . . . Drone Launches . | . . . . . . . . . . . . . . . . . . . . . . . . . . . . . . Drone Recoveries . | . . . . . . . . . . . . . . . . . . . . . . . . . . . . . . Exploration | -11 -10 -10 -10 -9 -9 -6 -6 -6 -6 -6 -6 -5 -5 -5 -5 -5 -5 -5 -4 -4 -4 -4 -4 -4 -4 -3 -3 -3 -3 ------------- Run | Yrd Mat Min Sub Rec Scr Fac Was Fac Low Low Zio Pro Fac Was Fac Upp Upp War Pro Fac Was Fac Upp Upp Zhi Pro Res Qua Frg Turns Passed 18140 | 116 1052 531 2959 461 2020 2336 120 503 95 286 429 356 815 180 951 145 87 599 129 392 15 736 123 97 47 123 585 181 1671 Spaces Moved 25449 | 50 477 309 1341 353 1179 1972 322 1255 329 678 748 500 2008 374 2397 520 343 992 308 1135 85 1742 449 339 153 366 1357 397 2971 Core 2 | 2 . . . . . . . . . . . . . . . . . . . . . . . . . . . . . Treads 2005 | 48 477 309 1171 . . . . . . . . . . . . . . . . . . . . . . . . . . Legs 2755 | . . . 170 353 1179 1053 . . . . . . . . . . . . . . . . . . . . . . . Wheels . | . . . . . . . . . . . . . . . . . . . . . . . . . . . . . . Hover . | . . . . . . . . . . . . . . . . . . . . . . . . . . . . . . Flight 20687 | . . . . . . 919 322 1255 329 678 748 500 2008 374 2397 520 343 992 308 1135 85 1742 449 339 153 366 1357 397 2971 Fastest Speed 7 | 50 160 160 130 130 130 28 29 28 28 28 28 21 12 21 18 25 25 23 23 7 7 14 25 25 25 25 26 23 27 Average Speed 52 | 155 160 160 200 130 165 82 29 31 28 28 28 27 25 24 23 25 25 24 23 19 17 21 25 25 25 25 26 26 33 Slowest Speed 240 | 160 160 160 240 130 200 200 29 37 28 28 28 28 181 25 25 25 25 25 23 23 19 28 25 25 25 26 27 27 119 Overloaded Moves 208 | . . . . . . . . . . . . 10 54 . 8 . . . . 48 13 58 . . . . . 17 . Propulsion Burnouts . | . . . . . . . . . . . . . . . . . . . . . . . . . . . . . . Robots Hopped 99 | . . . . . . 1 2 20 . . . . 9 . 10 1 . 3 . 26 . 5 . 2 . . 5 3 12 Potential Cave-ins 12 | . . . . . . . . . . 2 . . . . 2 . . . . . . 3 . . . . . 2 3 Cave-ins Triggered . | . . . . . . . . . . . . . . . . . . . . . . . . . . . . . . Teleports 1 | . . . . . . . . . . . . . . . . . . . . . . . . . . . . . 1 Exploration Rate (%) 65 | 4 89 60 77 81 83 62 95 44 64 81 86 69 64 97 62 79 57 91 60 35 89 56 74 61 62 59 33 40 63 Regions Visited 29 Branch Regions 18 Pre-discovered Areas 13 | . . 1 1 6 . 1 . . . . . . . . . . . . . . . . 1 . 3 . . . . Known Exits Taken 20 | . . 1 1 1 . . . 1 1 1 1 1 . . 1 1 1 1 1 . . 1 1 1 1 1 1 1 . Unknown Exits Taken 3 | 1 1 . . . 1 . . . . . . . . . . . . . . . . . . . . . . . . Scrap Searched 38 | . . 2 11 . 8 . . . 1 2 3 1 . . . 2 1 . . . . . 4 1 . 2 . . . Spaces Dug 294 | . 22 11 3 . . 20 . 14 1 28 . 16 25 . 32 . . . 6 19 . 20 1 . . 6 33 6 31 Terrain Destroyed 902 | . 35 18 92 . . 100 . 22 1 28 . 16 46 . 71 . . 194 6 19 . 136 1 34 . 6 33 6 38 Melee 209 | . . . 2 . . 15 . 12 1 24 . 10 25 . 23 . . . 5 16 . 17 1 . . 4 23 3 28 Projectile 76 | . . . 7 . . 18 . 2 . 4 . 6 . . 9 . . 3 1 3 . 3 . . . 2 10 3 5 AOE 617 | . 35 18 83 . . 67 . 8 . . . . 21 . 39 . . 191 . . . 116 . 34 . . . . 5 Terrain Rammed . | . . . . . . . . . . . . . . . . . . . . . . . . . . . . . . Walls Destroyed . | . . . . . . . . . . . . . . . . . . . . . . . . . . . . . . Machines Disabled . | . . . . . . . . . . . . . . . . . . . . . . . . . . . . . . Actions | -11 -10 -10 -10 -9 -9 -6 -6 -6 -6 -6 -6 -5 -5 -5 -5 -5 -5 -5 -4 -4 -4 -4 -4 -4 -4 -3 -3 -3 -3 --------- Run | Yrd Mat Min Sub Rec Scr Fac Was Fac Low Low Zio Pro Fac Was Fac Upp Upp War Pro Fac Was Fac Upp Upp Zhi Pro Res Qua Frg Total 29073 | 75 665 343 1480 355 1251 2492 345 1306 329 715 966 685 2215 455 2698 533 343 1333 355 1244 84 2037 454 341 160 378 1491 454 3491 Wait 2283 | 10 105 29 7 . 45 283 24 5 . 6 214 167 105 79 238 15 1 251 40 89 . 199 2 . . 1 27 40 301 Move 25241 | 49 476 308 1340 352 1178 1970 318 1219 328 677 747 499 1991 373 2377 517 342 987 307 1085 84 1731 448 335 152 365 1347 390 2949 Hop 83 | . . . . . . 1 1 15 . . . . 8 . 9 1 . 1 . 24 . 5 . 1 . . 4 3 10 Pick Up 137 | 2 11 2 16 1 12 25 . 9 . . 1 . 8 . 3 . . 12 . 4 . 15 2 . 2 . 5 . 7 Fast Attach 139 | 8 3 . 2 . . 27 1 10 . . 1 . 16 . 3 . . 12 . 5 . 9 . . 3 . 11 3 25 Attach 75 | . 2 . 3 . . 12 . 7 . . . . 8 . 5 . . 2 . 3 . 11 . . . . 2 1 19 Detach 45 | 1 . . . . . 5 . 4 . . . . 4 . 5 . . 4 . 2 . 4 . . . . 2 2 12 Swap 126 | . 9 2 26 1 3 31 . 2 . 4 1 2 6 1 3 . . 2 2 4 . 11 . . . 5 3 1 7 Drop 166 | . 2 . 9 1 13 29 1 9 . . 2 . 11 . 6 . . 21 . 4 . 16 . . 3 . 11 5 23 Fire 332 | 5 57 2 61 . . 68 . 4 . 3 . 5 5 . 12 . . 18 1 4 . 11 . 5 . 2 10 3 56 Melee 335 | . . . 15 . . 38 . 22 1 25 . 12 42 2 37 . . 1 5 20 . 24 2 . . 5 39 6 39 Ram . | . . . . . . . . . . . . . . . . . . . . . . . . . . . . . . Kick 3 | . . . . . . 3 . . . . . . . . . . . . . . . . . . . . . . . Crush . | . . . . . . . . . . . . . . . . . . . . . . . . . . . . . . Escape Stasis 58 | . . . . . . . . . . . . . 11 . . . . . . . . 1 . . . . 30 . 16 Rewire 22 | . . . . . . . . . . . . . . . . . . 22 . . . . . . . . . . . Trap . | . . . . . . . . . . . . . . . . . . . . . . . . . . . . . . Miscellaneous 28 | . . . 1 . . . . . . . . . . . . . . . . . . . . . . . . . 27 Route ------- -11/Scrapyard -10/Materials (discovered 6 exits: *Mat x3 / [*Min x2] / Sub) -10/Mines (discovered 2 exits: *Mat / *Sub) -10/Subcaves (discovered 3 exits: *Mat x2 / *Rec) -9/Recycling (discovered 2 exits: [*Fac] / *Scr) -9/Scraptown -6/Factory (discovered 5 exits: *Fac x3 / *Low x2) -6/Waste -6/Factory (discovered 3 exits: *Fac / *Low x2) -6/Lower Caves -6/Lower Caves (discovered 2 exits: *Fac / *Zio) -6/Zion -5/Proximity Caves -5/Factory (discovered 3 exits: *Fac x3) -5/Waste -5/Factory (discovered 3 exits: *Fac / *Upp x2) -5/Upper Caves -5/Upper Caves (discovered 2 exits: *Fac / *War) -5/Warlord -4/Proximity Caves -4/Factory (discovered 4 exits: *Res x2 / Upp / *Ext) -4/Waste -4/Factory (discovered 7 exits: *Res x2 / *Upp x2 / *Ext x2 / Arm) -4/Upper Caves -4/Upper Caves -4/Zhirov -3/Proximity Caves -3/Research (discovered 3 exits: *Res / *Qua x2) -3/Quarantine (discovered 3 exits: *Res / *Sec / *Frg) -3/Protoforge History --------- Turn | Location | Event 35 | -11/Scrapyard | Discovered new exit (range 15) 117 | -11/Scrapyard | Entered Materials 315 | -10/Materials | Build established: Mutant 323 | -10/Materials | Discovered new exit (range 8) 397 | -10/Materials | Discovered new exit (range 16) 560 | -10/Materials | Discovered new exit (range 5) 685 | -10/Materials | Discovered new exit (range 8) 710 | -10/Materials | Identified exit to Subcaves 749 | -10/Materials | Learned Storage security intel 778 | -10/Materials | Identified exit to Materials 778 | -10/Materials | Learned location of 1 exit from Materials 885 | -10/Materials | Learned 2 Storage zone layouts 895 | -10/Materials | Learned location of 2 exits from Mines 896 | -10/Materials | Learned location of 1 exit from Storage 919 | -10/Materials | Repaired Lgt. Treads 929 | -10/Materials | Learned location of 1 exit from Storage 952 | -10/Materials | Repaired Imp. Ion Engine 958 | -10/Materials | Learned location of 1 exit from Recycling 980 | -10/Materials | Repaired Lgt. Treads 1169 | -10/Materials | Entered Mines 1651 | -10/Mines | Received a Mining Laser from a helpful Derelict 1700 | -10/Mines | Entered Subcaves 1700 | -10/Subcaves | Accompanied by 3 allies 1701 | -10/Subcaves | Approached by a straggling Scientist 1705 | -10/Subcaves | Led the pair of lost Derelicts to an unsafe place 1728 | -10/Subcaves | Discovered new exit (range 13) 1763 | -10/Subcaves | Disturbed a concealed Subdweller 1851 | -10/Subcaves | Ambushed by Subdweller buried in earth 2118 | -10/Subcaves | Visited Clippyterm 2123 | -10/Subcaves | Identified exit to Materials 2123 | -10/Subcaves | Identified exit to Recycling 2168 | -10/Subcaves | Shifting Twisted Machinery released Mak. Spear 2660 | -10/Subcaves | Core integrity fell below 50% 2688 | -10/Subcaves | Disturbed a concealed Subdweller 2787 | -10/Subcaves | Ambushed by Subdweller buried in earth 2975 | -10/Subcaves | Shifting Twisted Machinery released Shrapnel Trap 3862 | -10/Subcaves | Core integrity fell below 20% 4237 | -10/Subcaves | Visited 4L-MR0's lab 4269 | -10/Subcaves | Found Cargo Legs 4270 | -10/Subcaves | Attached Cargo Legs, gained temporary slots: Utility x2 4659 | -10/Subcaves | Entered Recycling 4660 | -9/Recycling | Identified exit to Scraptown 4763 | -9/Recycling | Discovered new exit (range 10) 5088 | -9/Recycling | Scanned before Scraplab entrance 5106 | -9/Recycling | Entered Scraplab 5120 | -9/Recycling | Entered Scraptown 5369 | -9/Scraptown | Scanned Subdweller tech in exchange for log data 5372 | -9/Scraptown | Learned Research emergency access door positions 5373 | -9/Scraptown | Learned Research terminal intel 5374 | -9/Scraptown | Learned Factory emergency access door positions 5854 | -9/Scraptown | Visited TADAMA 5873 | -9/Scraptown | Visited CR-KLE's Repair Center 5885 | -9/Scraptown | CR-KLE repaired 5 parts 6060 | -9/Scraptown | Visited Red Mages 6094 | -9/Scraptown | Visited Spacefarers 6156 | -9/Scraptown | Visited Bundlers 6290 | -9/Scraptown | Visited UFD Registry 6290 | -9/Scraptown | Registered with UFD as "Plasmakit" 6336 | -9/Scraptown | Visited Scrap Suit Storage 6396 | -9/Scraptown | Visited Science Testing Area 6432 | -9/Scraptown | Visited LU-1G1's Boring Crew 6559 | -9/Scraptown | Visited Scrapoid Research Area 6641 | -9/Scraptown | Visited Junk Repository 6726 | -9/Scraptown | Visited Science Guys 6776 | -9/Scraptown | Visited Analyses Database 6826 | -9/Scraptown | Visited Curators Association 6858 | -9/Scraptown | Visited Abandonware Association 7004 | -9/Scraptown | Met Optimus 7004 | -9/Scraptown | Accepted into 0bPrime 7136 | -9/Scraptown | Discovered new exit (range 3) 7140 | -9/Scraptown | Entered Factory 7140 | -6/Factory | Evolved 8 slots: Propulsion x3, Utility x4, Weapon x1 7815 | -6/Factory | Discovered new exit (range 5) 7825 | -6/Factory | Identified exit to Factory 7988 | -6/Factory | Fabricated Field Propulsion Drive (x2) 8089 | -6/Factory | Build established: Scavenger-Assassin 8795 | -6/Factory | Discovered new exit (range 16) 9194 | -6/Factory | Discovered new exit (range 13) 9197 | -6/Factory | Identified exit to Lower Caves 9214 | -6/Factory | Loaded intel: 8 recycling unit locations 9279 | -6/Factory | Learned location of Protoforge (-3) 9310 | -6/Factory | Discovered exit to Factory (range 17) 9445 | -6/Factory | Build established: Hacker-Scout 9473 | -6/Factory | Discovered exit to Factory (range 16) 9476 | -6/Factory | Sucked down chute 9476 | -6/Factory | Entered Waste 9479 | -6/Waste | Spotted C-40 Crusher 9481 | -6/Waste | 1 allies followed down the chute 9482 | -6/Waste | Spotted C-40 Crusher 9498 | -6/Waste | Spotted C-40 Crusher 9512 | -6/Waste | Spotted C-40 Crusher 9524 | -6/Waste | Spotted C-40 Crusher 9524 | -6/Waste | Spotted C-40 Crusher 9531 | -6/Waste | Discovered new exit (range 13) 9542 | -6/Waste | Warlord forces began an assault 9560 | -6/Waste | Allies destroyed C-40 Crusher 9560 | -6/Waste | Allies destroyed C-40 Crusher 9590 | -6/Waste | Allies destroyed C-40 Crusher 9595 | -6/Waste | Identified exit to Factory 9596 | -6/Waste | Entered Factory 9612 | -6/Factory | Loaded intel: 8 recycling unit locations 9623 | -6/Factory | Lost 6 allies 9643 | -6/Factory | Discovered exit to Lower Caves (range 15) 9773 | -6/Factory | Spotted B-75 Beast 9780 | -6/Factory | Lost 4 parts (3n1u) 9946 | -6/Factory | Search patrols dispatched 10006 | -6/Factory | Discovered exit to Lower Caves (range 8) 10062 | -6/Factory | Discovered exit to Factory (range 5) 10078 | -6/Factory | Found Prototype Launcher 10078 | -6/Factory | Identified Rocket Array 10099 | -6/Factory | Entered Lower Caves 10105 | -6/Lower Caves | Learned 4 Factory zone layouts 10183 | -6/Lower Caves | Discovered new exit (range 11) 10186 | -6/Lower Caves | Identified exit to Lower Caves 10194 | -6/Lower Caves | Entered another Lower Caves area 10205 | -6/Lower Caves | Entered an active Warlord outpost 10209 | -6/Lower Caves | Learned Armory garrison access intel 10209 | -6/Lower Caves | A Commander dispatched an escort 10216 | -6/Lower Caves | Discovered exit to Factory (range 20) 10234 | -6/Lower Caves | Build established: Scout 10433 | -6/Lower Caves | Discovered new exit (range 13) 10436 | -6/Lower Caves | Identified exit to Zion 10437 | -6/Lower Caves | Learned Factory garrison access intel 10453 | -6/Lower Caves | Acquired the password to a Derelict Tinkerer's latest research 10480 | -6/Lower Caves | Entered Zion 10507 | -6/Zion | Discovered new exit (range 9) 10514 | -6/Zion | System corruption cleaned by Quarantine Array 10546 | -6/Zion | Learned Factory emergency access door positions 10556 | -6/Zion | Given the Hacking Drone Bay 10556 | -6/Zion | Found Prototype Device 10556 | -6/Zion | Identified Hacking Drone Bay 10597 | -6/Zion | Received a visual enhancement algorithm 10616 | -6/Zion | Gained Derelict followers 10628 | -6/Zion | Gained Derelict followers 10645 | -6/Zion | Turned away by Imprinter 10702 | -6/Zion | Identified exit to Proximity Caves 10909 | -6/Zion | Entered Proximity Caves 10909 | -5/Proximity Caves | Accompanied by 5 allies 11011 | -5/Proximity Caves | Spotter reported a threat 11042 | -5/Proximity Caves | Lost 5 allies 11097 | -5/Proximity Caves | Spotter reported a threat 11242 | -5/Proximity Caves | Spotter reported a threat 11259 | -5/Proximity Caves | Core integrity fell below 50% 11265 | -5/Proximity Caves | Entered Factory 11265 | -5/Factory | Evolved 2 slots: Propulsion x1, Utility x1 11268 | -5/Factory | Loaded intel: 3 garrison access locations 11438 | -5/Factory | Spotted B-75 Beast 11565 | -5/Factory | Search patrols dispatched 11625 | -5/Factory | Repaired Exp. Propulsion Shielding 11669 | -5/Factory | Loaded intel: 8 recycling unit locations 11788 | -5/Factory | Discovered new exit (range 12) 11832 | -5/Factory | Discovered new exit (range 21) 11898 | -5/Factory | Discovered new exit (range 22) 12080 | -5/Factory | Manually triggered Chute Trap 12080 | -5/Factory | Sucked down chute 12080 | -5/Factory | Entered Waste 12086 | -5/Waste | Spotted C-40 Crusher 12109 | -5/Waste | Spotted C-40 Crusher 12110 | -5/Waste | Spotted C-40 Crusher 12112 | -5/Waste | Spotted C-40 Crusher 12117 | -5/Waste | Spotted C-40 Crusher 12122 | -5/Waste | Warlord forces began an assault 12142 | -5/Waste | Allies destroyed C-40 Crusher 12157 | -5/Waste | Allies destroyed C-40 Crusher 12159 | -5/Waste | Allies destroyed C-40 Crusher 12166 | -5/Waste | Spotted C-40 Crusher 12173 | -5/Waste | Allies destroyed C-40 Crusher 12188 | -5/Waste | Lost 5 allies 12211 | -5/Waste | Discovered new exit (range 13) 12219 | -5/Waste | Identified exit to Factory 12260 | -5/Waste | Entered Factory 12260 | -5/Factory | Accompanied by 11 allies 12269 | -5/Factory | Discovered new exit (range 7) 12331 | -5/Factory | Lost 4 allies 12344 | -5/Factory | Loaded intel: 8 recycling unit locations 12496 | -5/Factory | Lost 5 allies 12639 | -5/Factory | Repaired Exp. Propulsion Shielding 12831 | -5/Factory | Build established: Hacker-Scout 13024 | -5/Factory | Discovered new exit (range 21) 13055 | -5/Factory | Spotted B-75 Beast 13148 | -5/Factory | Identified exit to Upper Caves 13151 | -5/Factory | Fabricated G-50 Soldier? 13154 | -5/Factory | Cargo convoy interrupted 13211 | -5/Factory | Entered Upper Caves 13213 | -5/Upper Caves | Learned location of 1 exit from Factory 13323 | -5/Upper Caves | Found DCF Scrap (13 items) 13354 | -5/Upper Caves | Discovered new exit (range 11) 13356 | -5/Upper Caves | Identified exit to Upper Caves 13356 | -5/Upper Caves | Entered another Upper Caves area 13360 | -5/Upper Caves | Discovered new exit (range 15) 13389 | -5/Upper Caves | Attracted the attention of an 0b10 checkpoint 13442 | -5/Upper Caves | Learned location of 1 exit from Factory 13442 | -5/Upper Caves | Discovered new exit (range 3) 13443 | -5/Upper Caves | Identified exit to Warlord 13443 | -5/Upper Caves | Entered Warlord 13545 | -5/Warlord | Found Prototype Special Weapon 13545 | -5/Warlord | Identified RU-N14's Throwing Claymores v3 13548 | -5/Warlord | Found RU-N14's Throwing Claymores v3 13549 | -5/Warlord | Found RU-N14's Throwing Claymores v3 13550 | -5/Warlord | Found RU-N14's Throwing Claymores v3 13616 | -5/Warlord | Rebuked by Warlord 13633 | -5/Warlord | Visited the Vortex Lab 13634 | -5/Warlord | Found Prototype Energy Cannon 13634 | -5/Warlord | Identified Vortex Driver 13635 | -5/Warlord | Warlord's base attacked by MAIN.C 13637 | -5/Warlord | Found Prototype Energy Gun 13638 | -5/Warlord | Found Prototype Energy Gun 13677 | -5/Warlord | Identified Vortex Rail (x2) 13681 | -5/Warlord | Found Prototype Hackware 13687 | -5/Warlord | Found Prototype Device 13687 | -5/Warlord | Identified Exp. Cloaking Device 13798 | -5/Warlord | Found RU-N14's Throwing Claymores v3 13809 | -5/Warlord | Destroyed 9 combat bots 13929 | -5/Warlord | Found RU-N14's Throwing Claymores v3 13959 | -5/Warlord | Warlord forces counterattacked 13961 | -5/Warlord | Spotted Striker 13976 | -5/Warlord | Build established: Hacker-Sprinter 14024 | -5/Warlord | Discovered new exit (range 12) 14026 | -5/Warlord | Identified exit to Proximity Caves 14037 | -5/Warlord | Spotted Striker 14037 | -5/Warlord | Spotted Striker 14037 | -5/Warlord | Spotted Executioner 14042 | -5/Warlord | Entered Proximity Caves 14073 | -4/Proximity Caves | Lost 5 allies 14158 | -4/Proximity Caves | Spotted B-86 Titan 14170 | -4/Proximity Caves | Discovered new exit (range 5) 14171 | -4/Proximity Caves | Identified exit to Factory 14171 | -4/Proximity Caves | Entered Factory 14171 | -4/Factory | Evolved 2 slots: Power x1, Propulsion x1 14172 | -4/Factory | Identified exit to Research 14172 | -4/Factory | Identified exit to Upper Caves 14202 | -4/Factory | Identified System Mapper 14304 | -4/Factory | Loaded intel: 8 recycling unit locations 14328 | -4/Factory | Central database locked down 14354 | -4/Factory | Build established: Hacker-Scout 14363 | -4/Factory | Discovered new exit (range 14) 14370 | -4/Factory | Found Prototype Hackware 14370 | -4/Factory | Identified Exp. Hacking Suite 14473 | -4/Factory | Unchained authorized (GL-D0S) 14506 | -4/Factory | Spotted B-86 Titan 14517 | -4/Factory | Discovered exit to Research (range 19) 14563 | -4/Factory | Manually triggered Chute Trap 14563 | -4/Factory | Sucked down chute 14563 | -4/Factory | Entered Waste 14571 | -4/Waste | Spotted C-40 Crusher 14575 | -4/Waste | Spotted C-40 Crusher 14575 | -4/Waste | Discovered new exit (range 22) 14576 | -4/Waste | Spotted C-40 Crusher 14577 | -4/Waste | Spotted C-40 Crusher 14577 | -4/Waste | Spotted C-40 Crusher 14577 | -4/Waste | Spotted C-40 Crusher 14578 | -4/Waste | EMP discharged 14578 | -4/Waste | System corruption reached 10% 14578 | -4/Waste | Identified exit to Factory 14578 | -4/Waste | Entered Factory 14741 | -4/Factory | Found Quantum Capacitor 14782 | -4/Factory | Spotted B-86 Titan 14797 | -4/Factory | Unchained authorized (GL-D0S) 14830 | -4/Factory | Discovered exit to Research (range 9) 14832 | -4/Factory | Identified exit to Extension 14832 | -4/Factory | Identified exit to Armory 14911 | -4/Factory | Fabricated Mni. Smartbomb Launcher? 15076 | -4/Factory | Repaired Broken Lgt. Antimatter Reactor+ 15092 | -4/Factory | Loaded intel: 8 recycling unit locations 15168 | -4/Factory | Central database locked down 15172 | -4/Factory | Discovered exit to Research (range 16) 15314 | -4/Factory | Entered Upper Caves 15382 | -4/Upper Caves | Build established: Hacker-Sprinter 15405 | -4/Upper Caves | Learned location of Armory (-4) 15412 | -4/Upper Caves | Attacked by a delusional Derelict stockpiling parts 15428 | -4/Upper Caves | Discovered new exit (range 6) 15434 | -4/Upper Caves | Identified exit to Upper Caves 15437 | -4/Upper Caves | Entered another Upper Caves area 15442 | -4/Upper Caves | Spotted B-86 Titan 15530 | -4/Upper Caves | Discovered new exit (range 15) 15533 | -4/Upper Caves | Identified exit to Zhirov 15534 | -4/Upper Caves | Entered Zhirov 15534 | -4/Zhirov | Discovered new exit (range 3) 15539 | -4/Zhirov | Met Zhirov 15547 | -4/Zhirov | Found Alien Artifact 15547 | -4/Zhirov | Identified Integrated Reactor 15547 | -4/Zhirov | Installed Integrated Reactor, increased core energy generation (+10) 15555 | -4/Zhirov | Found Alien Artifact 15572 | -4/Zhirov | Learned location of Testing (-2) 15572 | -4/Zhirov | Learned location of Command (-1) 15574 | -4/Zhirov | Zhirov requested help retrieving the SGEMP Prototype 15580 | -4/Zhirov | Identified exit to Proximity Caves 15581 | -4/Zhirov | Entered Proximity Caves 15637 | -3/Proximity Caves | Spotted B-86 Titan 15701 | -3/Proximity Caves | Discovered exit to Research (range 5) 15704 | -3/Proximity Caves | Entered Research 15704 | -3/Research | Evolved 2 slots: Utility x2 15705 | -3/Research | Identified exit to Quarantine 15707 | -3/Research | Loaded intel: 23 terminal locations 15854 | -3/Research | Repaired Mic. Antimatter Reactor+? 15963 | -3/Research | Discovered new exit (range 9) 15965 | -3/Research | Identified exit to Research 16064 | -3/Research | Fabricated Lrn. Sensor Array (x2) 16116 | -3/Research | Spotted B-86 Titan 16151 | -3/Research | Loaded intel: 5 recycling unit locations 16186 | -3/Research | Spotted B-86 Titan 16289 | -3/Research | Entered Quarantine 16299 | -3/Quarantine | Found Alien Slashing Weapon 16299 | -3/Quarantine | Identified Sigix Broadsword 16308 | -3/Quarantine | Found Alien Energy Cannon 16308 | -3/Quarantine | Identified Core Cannon 16440 | -3/Quarantine | Spotted Alpha 7 16450 | -3/Quarantine | Spotted Fortress 16468 | -3/Quarantine | Discovered new exit (range 6) 16468 | -3/Quarantine | Discovered new exit (range 7) 16469 | -3/Quarantine | Identified exit to Section 7 16470 | -3/Quarantine | Identified exit to Protoforge 16470 | -3/Quarantine | Entered Protoforge 16518 | -3/Protoforge | Superfortress began startup sequence 16762 | -3/Protoforge | Spotted Hotshot 16763 | -3/Protoforge | Spotted Hotshot 16804 | -3/Protoforge | Spotted B-86 Titan 16850 | -3/Protoforge | Spotted AP7-3 16850 | -3/Protoforge | Spotted AP7-3 16865 | -3/Protoforge | Identified Transdimensional Reconstructor 16865 | -3/Protoforge | Warped through subspace 16905 | -3/Protoforge | Spotted Hotshot 16905 | -3/Protoforge | Spotted Hotshot 16910 | -3/Protoforge | Spotted SKR-2 16910 | -3/Protoforge | Spotted SKR-2 16910 | -3/Protoforge | Spotted SKR-2 16923 | -3/Protoforge | UFD initiated attack on Protoforge 16923 | -3/Protoforge | Loaded intel: 3 recycling unit locations 16937 | -3/Protoforge | Spotted EXE-6 16937 | -3/Protoforge | Spotted EXE-6 16938 | -3/Protoforge | Spotted EXE-6 16950 | -3/Protoforge | Spotted EXE-6 16959 | -3/Protoforge | Optimus greeted in Protoforge 16973 | -3/Protoforge | Found Prototype Processor 16973 | -3/Protoforge | Identified Exp. Melee Analysis Suite 16978 | -3/Protoforge | Lost 7 parts (5n2u) 16989 | -3/Protoforge | Lost 8 allies 17109 | -3/Protoforge | Met 7R-MNS 17213 | -3/Protoforge | Lost 3 parts (1n2w) 17262 | -3/Protoforge | Found Prototype Ballistic Gun 17262 | -3/Protoforge | Identified Cep. XC Strikerail 17265 | -3/Protoforge | Found Cep. XC Strikerail 17303 | -3/Protoforge | Core integrity fell below 50% 17446 | -3/Protoforge | Found Scrap Suit 17462 | -3/Protoforge | Found UFD Drillbomb 17466 | -3/Protoforge | Found Exp. Melee Analysis Suite 17507 | -3/Protoforge | Spotted EXE-6 17507 | -3/Protoforge | Spotted Striker 17531 | -3/Protoforge | Spotted Decapitator 17531 | -3/Protoforge | Spotted Decapitator 17535 | -3/Protoforge | Spotted Decapitator 17536 | -3/Protoforge | Spotted Decapitator 17536 | -3/Protoforge | Spotted Decapitator 17548 | -3/Protoforge | Spotted Executioner 17548 | -3/Protoforge | Spotted Executioner 17581 | -3/Protoforge | Lost 3 allies 17590 | -3/Protoforge | Installed UFD Drillbomb at designated target 17590 | -3/Protoforge | UFD reported confirmed Drillbomb installation 17612 | -3/Protoforge | Spotted Striker 17630 | -3/Protoforge | Spotted Executioner 17630 | -3/Protoforge | Spotted Striker 17630 | -3/Protoforge | Spotted Striker 17631 | -3/Protoforge | Spotted Immortal 17631 | -3/Protoforge | Spotted Immortal 17641 | -3/Protoforge | Found UFD Drillbomb 17674 | -3/Protoforge | Lost 6 allies 17708 | -3/Protoforge | Spotted Executioner 17716 | -3/Protoforge | Destroyed Executioner 17777 | -3/Protoforge | Lost 10 allies 17817 | -3/Protoforge | Spotted Striker 17844 | -3/Protoforge | Spotted Striker 17844 | -3/Protoforge | Spotted Executioner 17885 | -3/Protoforge | Installed UFD Drillbomb at designated target 17885 | -3/Protoforge | UFD reported confirmed Drillbomb installation 17888 | -3/Protoforge | Spotted Hotshot 17890 | -3/Protoforge | Spotted Hotshot 17890 | -3/Protoforge | Spotted Hotshot 17903 | -3/Protoforge | Installed UFD Drillbomb at designated target 17903 | -3/Protoforge | UFD reported confirmed Drillbomb installation 17909 | -3/Protoforge | Spotted Executioner 17912 | -3/Protoforge | Spotted Immortal 17912 | -3/Protoforge | Spotted Immortal 17912 | -3/Protoforge | Spotted Immortal 17917 | -3/Protoforge | Spotted Striker 17930 | -3/Protoforge | Spotted Executioner 17945 | -3/Protoforge | Build established: Scavenger-Sprinter 17948 | -3/Protoforge | Lost 3 parts (1p1n1u) 17962 | -3/Protoforge | Found UFD Drillbomb 17970 | -3/Protoforge | Lost 4 allies 18002 | -3/Protoforge | Spotted Striker 18002 | -3/Protoforge | Spotted Executioner 18002 | -3/Protoforge | Spotted Executioner 18018 | -3/Protoforge | Spotted Executioner 18049 | -3/Protoforge | Lost 8 allies 18069 | -3/Protoforge | Core integrity fell below 20% 18069 | -3/Protoforge | Spotted Decapitator 18079 | -3/Protoforge | Destroyed Decapitator 18086 | -3/Protoforge | Spotted Hotshot 18089 | -3/Protoforge | Spotted Hotshot 18096 | -3/Protoforge | Spotted Hotshot 18096 | -3/Protoforge | Spotted Hotshot 18125 | -3/Protoforge | Spotted V864-s 18125 | -3/Protoforge | Spotted V126-k 18125 | -3/Protoforge | Spotted V354-f 18125 | -3/Protoforge | Spotted V146-u 18141 | -3/Protoforge | Destroyed by Hotshot with Precision Phase Gun Last Messages --------------- 18119_ Drone sends a signal. 18119_ Stasis field depleted. 18127_ 0bP_NET: Lugger 700 inbound, all units not involved in other operations escort to target. 18129_ V864-s springs to life. 18130_ System corrupted: Energy discharge (-55). 18130_ V126-k springs to life. 18131_ Penetrated by Slug. 18131_ Impulse Thruster Array destroyed. 18132_ Swarm Drone destroyed. 18133_ Penetrated by Slug. 18134_ Slug penetrates Reinforced Barrier. 18134_ Penetrated by Slug. 18135_ 0bP_NET: Lugger 604 inbound, all units not involved in other operations escort to target. 18137_ Triggered Segregator Trap. 18137_ Arcs of energy rise from the floor. 18137_ Centrium Medium Armor Plating blown off. 18137_ Penetrated by Slug. 18138_ Slug penetrates Reinforced Barrier. Map ----- +----------------------------------------------------+ | ??????????????????????#" "**"#??????????? | | ??????????????????????#"" " "#??????????? | | ??????????????????????#"""" " "#??????????? | | ??????????????????????#"""" " "#??????????? | | ??????????????????????#"" " "#??????????? | | ??????????????????????#" " "#??????????? | | ???????????????????????# #??????????????? | | ???????????????????????###""" ####??????????????? | | ????????????????????????#"* " #?????????????????? | | ????????????????????????#" *" #?????????????????? | | ????????????????????????#"* " #?????????????????? | | ????????????????????????#" " #?????????????????? | | ????????????????????????#" " #?????????????????? | | ????????????????????????#" " #?????????????????? | | ????????????????????????#" " #?????????????????? | | ????????????????????????#" *" #?????????????????? | | ????????????????????????#" " #?????????????????? | | ????????????????????????#"""# #?????????????????? | | ????????????????????????#####! #?????????????????? | | ????????????????????????????# #?????????????????? | | ????????????????????????????# #?????????????????? | | ????????????????????????????# #?????????????????? | | ????????????????????????????# #?????????????????? | | ????????????????????????????# #?????????????????? | | ?????????????????############ Y################### | | ?????????? @ hg | | ?????????? | | ?????????? g | | ???????????#####++###################///######## | | ?????????????????????????????????# #???#^ | | ?????????????????????????????????# #???# | | ?????????????????????????????????# " " #???# | | ?????????????????????????????????# " " #???# | | ?????????????????????????????????# ""G"" #???# | | ?????????????????????????????????# #???# | | ?????????????????????????????????###########???# | | ???????????????????????????????????????????????# | | ???????????????????????????????????????????????# | | ???????????????????????????????????????????????# | | ???????????????????????????????????????????????### | | ?????????????????????????????????????????????????? | | ?????????????????????????????????????????????????? | | ?????????????????????????????????????????????????? | | ?????????????????????????????????????????????????? | | ?????????????????????????????????????????????????? | | ??????????????????????????????????????????????#### | | ??????????????????????????????????????????????#### | | ??????????????????????????????????????????????##?? | | ???????????????????########?########?########?##?? | | ???????????????????########?########?########?##?? | +----------------------------------------------------+ Best States ------------- Heat Dissipation 77 Energy Generation 47 Energy Capacity 265 Matter Stores 300 Matter Capacity 300 Sight Range 22 Robot Scan Range 18 Terrain Scan Density 10 ECM Strength 1 Cloak Strength 4 Armor Coverage 950 Power Shielding 90 Propulsion Shielding 90 Evasion (%) 77 Targeting Accuracy 8 Melee Accuracy 32 Launcher Accuracy 120 Recoil Reduction 2 Offensive Hacking 50 Defensive Hacking 14 Authchip Count 1 Item Schematics ----------------- Exp. Propulsion Shielding | -5/Factory | Scanalyzed CPS Tube | -5/Factory | Scanalyzed Adv. Melee Analysis Suite | -5/Factory | Scanalyzed Imp. Q-thruster | -4/Factory | Hacked Exp. Utility Shielding | -4/Factory | Hacked Mni. Smartbomb Launcher | -4/Factory | Hacked Assault Drone Bay | -4/Zhirov | Free Exp. Heat Sink | -4/Zhirov | Free Exp. Optical Array | -4/Zhirov | Free Imp. Arc Thrower | -4/Zhirov | Free Lrn. Sensor Array | -3/Research | Hacked Robot Schematics ------------------ None Fabricated ------------ Field Propulsion Drive | x2 | -6/Factory | Preloaded G-50 Soldier | x3 | -5/Factory | Preloaded Mni. Smartbomb Launcher | x1 | -4/Factory | Authchip Lrn. Sensor Array | x2 | -3/Research Repaired ---------- Lgt. Treads | 32% | -10/Materials Imp. Ion Engine | 30% | -10/Materials Lgt. Treads | 64% | -10/Materials Exp. Propulsion Shielding | 8% | -5/Factory Exp. Propulsion Shielding | 50% | -5/Factory Lgt. Antimatter Reactor | 21% | -4/Factory | Broken Mic. Antimatter Reactor | 2% | -3/Research Studied --------- VTOL Module | -6/Factory | Hacked Field Propulsion Drive | -6/Factory | Hacked Nuclear Pulse Thruster | -5/Factory | Hacked Lgt. Fission Core | -5/Factory | Hacked Nuclear Pulse Array | -5/Factory | Hacked Lgt. Antimatter Reactor | -4/Factory | Hacked Mic. Antimatter Reactor | -4/Factory | Hacked Alien Tech Used ----------------- Integrated Reactor Sigix Broadsword Core Cannon Transdimensional Reconstructor Achievements -------------- Bending The Rules Bumper Bots Civilization 2243 DATA ERROR: Steam Global Achievement% Deductive Reasoning Do Not Disturb Ew, Corruption Express Service Fine I'll Do It Myself For Emergencies Only Freedom! Heavy Suspicion Hulk Smash I Have A Map? I Laugh At Your Crits Into The Breach Item+ Jackpot Junior Dev Link The Feds Look Less Dangerous Next Time Mistaken Identity Network Effect Not Today, Chutes Official Business Organ Harvest Overwhelming Plot Armor Recruitment Drive Spot Them First Super-what Now? Survival Of The Most Covered Suspicious That Tickles The Better Part Of Valor There's More Where That Came From Thread The Needle Around The Corner Throw Away The Key Tune-up UFD MVP We Are One We Love MA You May Approach The Wall Challenges ------------ None Game ------ Seed ReinforcedFissionBeam Manual? 0 Play Time 05:32:04 Cumulative 399.0 hours Start 2025.10.21 @ 22:17:38 End 2025.10.29 @ 07:30:31 Sessions 14 Manual Loads 0 Difficulty Rogue Special Mode None Game No. 150 Rogue 129 Adventurer 21 Explorer 0 Win Type - Total 18 Types 11/1/4/1/0/0/0/1/0/0 Lore% 57 Gallery% 72 Achievement% 47 Wizard Run 0 Options --------- Layout 1 ASCII 0 Keyboard 0 Movement Mouse Keybinds 0 Fullscreen 2 Font 32/SmallcapsGlow Map View 77x35 Zoom Use 0% Tactical HUD 1 Map Filters NONE Filters NONE Steam 1 RUN: dbd5ef35-12f0-4818-ab83-8f2ec0eb5f55